Cogmind - Beta 16 @@@ ROGUE MODE // 2025.10.28 @ 07:54:01 Player: naththebg Result: Destroyed by MAIN.C with Heavy Quantum Rifle Performance ------------- Evolutions (9) 4500 Regions Visited (32) 6400 Robots Destroyed (410) 2050 Value Destroyed (26514) 26514 Prototype IDs (60) 1200 Alien Tech Used (0) 0 Bonus (38367) 38367 TOTAL SCORE: 79031 Bonus ------- High Alert Combat Kills 6348 Follower Combat Kills 17161 Entered Garrisons 2600 Used RIF Installer 7500 Aligned with FarCom 300 Met MAIN.C 5000 Friendly Fire -542 Cogmind --------- Core Integrity 0/1600 Matter 25/300 Energy 99/100 System Corruption 51% Temperature Cool (9) Movement Core (50) Location -1/Command Parts ------- > --- POWER (2) -------- (None) > --- PROPULSION (4) --- (None) > --- UTILITY (16) ----- Relay Coupler [NC] (31) Relay Coupler [C] (39) Relay Coupler [Swarmer] (40) Relay Coupler [Sentry] (33) Relay Coupler [Sentry] (9) Relay Coupler [Proto] (2) > --- WEAPON (3) ------- (None) > --- INVENTORY (5) ---- (None) Peak State ------------ > --- POWER ------------ Reinforced Antimatter Reactor Quantum Reactor > --- PROPULSION ------- Biometal Heavy Treads Advanced Heavy Siege Treads > --- UTILITY ---------- Huge Storage Unit Energy Well Improved Powered Armor Improved Powered Armor Advanced Remote Force Field Relay Coupler [NC] Relay Coupler [C] Relay Coupler [C] Relay Coupler [C] Relay Coupler [Sentry] Relay Coupler [Demolisher] Relay Coupler [Specialist] Relay Coupler [Hunter] Relay Coupler [Heavy] Relay Coupler [Behemoth] Relay Coupler [Proto] > --- WEAPON ----------- Firepult Advanced Remote Datajack > --- INVENTORY -------- Neutrino Core Improved Utility Shielding Improved Heavy Armor Plating Advanced Remote Force Field Relay Coupler [NC] Relay Coupler [C] Relay Coupler [C] Relay Coupler [Swarmer] Relay Coupler [Grunt] Relay Coupler [Sentry] Relay Coupler [Sentry] Relay Coupler [Sentry] Relay Coupler [Specialist] Advanced Field Recycling Unit Enhanced Hardcell Cannon Enhanced Hardcell Cannon [Rating: 180] Favorites ----------- Power F-cell Engine Engine F-cell Engine Power Core Neutrino Core Reactor Reinforced Antimatter Reactor Propulsion Armored Huge Wheel Treads Armored Treads Leg Centrium Leg Wheel Armored Huge Wheel Hover Unit Antigrav System Flight Unit Cooled Impulse Thruster Utility Relay Coupler [Grunt] Device Improved Shield Generator Storage Huge Storage Unit Processor Visual Processing Unit Hackware Relay Coupler [Grunt] Protection Improved Medium Armor Plating Weapon Heavy Mass Driver Energy Gun High-powered Shock Rifle Energy Cannon Firepult Ballistic Gun KE Penetrator Ballistic Cannon Heavy Mass Driver Launcher Precision Rocket Launcher Special Weapon Remote Datajack Build | -11 -10 -10 -10 -9 -8 -8 -8 -8 -7 -7 -7 -7 -6 -6 -6 -6 -5 -5 -4 -4 -4 -4 -4 -4 -3 -3 -2 -2 -2 -2 -1 -1 ------- Run | Yrd Mat Min Exi Min Mat Gar Mat Gar Fac Gar Fac Gar Fac Gar Fac Gar Fac Gar Fac Gar Fac Gar Fac Gar Res Gar Res Gar Res Gar Acc Com Slots Evolved 18 | . . . . . 4 . . . 2 . . . 2 . . . 2 . 2 . . . . . 2 . 2 . . . 2 . Power 1 | . . . . . . . . . . . . . . . . . . . . . . . . . 1 . . . . . . . Propulsion 2 | . . . . . 1 . . . . . . . . . . . . . . . . . . . . . . . . . 1 . Utility 14 | . . . . . 3 . . . 2 . . . 1 . . . 2 . 2 . . . . . 1 . 2 . . . 1 . Weapon 1 | . . . . . . . . . . . . . 1 . . . . . . . . . . . . . . . . . . . Parts Attached 296 | 6 11 . 1 2 23 8 16 10 10 6 3 7 16 10 1 9 11 14 21 11 8 19 1 15 3 13 4 16 . 10 2 9 Power 24 | . 2 . . . 4 1 1 . . 1 . . 4 . 1 . 3 1 1 . 1 . . 2 1 . . 1 . . . . Engine 14 | . 2 . . . 3 1 1 . . 1 . . 3 . 1 . . 1 . . . . . 1 . . . . . . . . Core 3 | . . . . . 1 . . . . . . . . . . . . . 1 . . . . . 1 . . . . . . . Reactor 7 | . . . . . . . . . . . . . 1 . . . 3 . . . 1 . . 1 . . . 1 . . . . Propulsion 39 | 3 2 . . 1 3 1 4 1 2 . 1 . 1 . . 1 1 5 4 . . 2 . 1 . 1 1 . . 2 2 . Treads 11 | 1 . . . 1 1 . 1 1 1 . 1 . . . . . . 2 . . . . . . . . . . . . 2 . Leg 9 | 2 . . . . . . . . . . . . . . . . . . 1 . . 1 . 1 . 1 1 . . 2 . . Wheel 17 | . 2 . . . 2 1 3 . 1 . . . 1 . . 1 . 2 3 . . 1 . . . . . . . . . . Hover 1 | . . . . . . . . . . . . . . . . . . 1 . . . . . . . . . . . . . . Flight 1 | . . . . . . . . . . . . . . . . . 1 . . . . . . . . . . . . . . . Utility 179 | 1 3 . 1 1 14 3 6 7 7 5 1 7 7 7 . 7 6 7 13 10 3 11 1 11 2 10 3 12 . 7 . 6 Device 34 | . 1 . . 1 4 2 . . 2 . . 1 1 . . . 2 3 8 4 . . . 1 . . . 3 . 1 . . Storage 8 | 1 1 . 1 . 2 . 1 . . . . . . . . . 1 . . . . 1 . . . . . . . . . . Processor 2 | . . . . . 1 . . . . . . . . . . . . . . . . . . . . . 1 . . . . . Hackware 102 | . . . . . 1 . 3 6 3 5 . 5 5 6 . 7 3 4 3 4 2 9 . 7 2 9 1 8 . 5 . 4 Protection 33 | . 1 . . . 6 1 2 1 2 . 1 1 1 1 . . . . 2 2 1 1 1 3 . 1 1 1 . 1 . 2 Artifact . | . . . . . . . . . . . . . . . . . . . . . . . . . . . . . . . . . Weapon 54 | 2 4 . . . 2 3 5 2 1 . 1 . 4 3 . 1 1 1 3 1 4 6 . 1 . 2 . 3 . 1 . 3 Energy Gun 3 | . . . . . . . . . . . . . . . . . . . . . . 2 . . . . . 1 . . . . Energy Cannon 3 | . . . . . . 1 1 . . . . . . . . . . . . . . . . . . . . 1 . . . . Ballistic Gun 7 | 2 2 . . . . . 1 . . . . . . . . . . . . 1 1 . . . . . . . . . . . Ballistic Cannon 24 | . 2 . . . 2 1 1 1 1 . 1 . 1 2 . 1 1 . 2 . 2 2 . 1 . . . 1 . . . 2 Launcher 6 | . . . . . . 1 1 . . . . . 2 . . . . . 1 . . 1 . . . . . . . . . . Special Weapon 11 | . . . . . . . 1 1 . . . . 1 1 . . . 1 . . 1 1 . . . 2 . . . 1 . 1 Impact Weapon . | . . . . . . . . . . . . . . . . . . . . . . . . . . . . . . . . . Slashing Weapon . | . . . . . . . . . . . . . . . . . . . . . . . . . . . . . . . . . Piercing Weapon . | . . . . . . . . . . . . . . . . . . . . . . . . . . . . . . . . . Special Melee Weapon . | . . . . . . . . . . . . . . . . . . . . . . . . . . . . . . . . . Unidentified Prototypes 15 | . . . . 1 . . 2 . . . . . 3 . . . 3 1 2 . . . . . . . . 3 . . . . Corrupted Parts 1 | . . . . . . . . . . . . . . . . . . . . . . . . . . . . . . 1 . . System Corruption 2 | . . . . . . . . . . . . . . . . . . . . . . . . . . . . . . 2 . . Parts Lost 66 | . . . . 1 2 4 1 2 . . . . 1 . . 2 1 9 2 3 6 5 . 2 . 1 2 . . 3 . 19 Power 2 | . . . . . . . . . . . . . 1 . . . . . . . . . . . . . . . . . . 1 Propulsion 13 | . . . . 1 1 . . 1 . . . . . . . 1 . 3 . . . 2 . 1 . . . . . 1 . 2 Utility 34 | . . . . . 1 2 1 1 . . . . . . . 1 . 5 2 2 4 1 . 1 . . 2 . . . . 11 Weapon 17 | . . . . . . 2 . . . . . . . . . . 1 1 . 1 2 2 . . . 1 . . . 2 . 5 Highest Loss Streak 18 | . . . . 1 1 3 1 1 . . . . 1 . . 2 1 6 1 1 6 2 . 2 . 1 1 . . 2 . 18 To Critical Strikes . | . . . . . . . . . . . . . . . . . . . . . . . . . . . . . . . . . Average Backups 19 | 4 8 10 9 9 15 18 18 18 18 18 18 17 14 16 17 17 18 23 21 21 21 21 22 23 21 22 17 20 22 21 17 15 Power . | 1 1 1 1 1 1 1 1 1 1 1 1 1 . 1 1 1 1 1 1 . . . 1 1 . . . . 1 1 1 . Propulsion . | 1 1 1 1 . 1 . . . . . . . . 1 1 . . . . 1 1 . . . . . 1 2 2 2 . . Utility 14 | . 1 2 2 2 5 14 15 13 13 12 12 12 9 10 12 12 13 16 17 16 17 18 19 20 19 20 12 13 15 14 13 11 Weapon 2 | 1 3 6 5 5 6 2 2 2 3 3 4 3 2 2 2 2 2 2 1 2 2 1 2 1 2 2 2 3 3 3 3 2 Tool/Special . | . . . . . . . . . . . . . . . . . . . . . . . . . . . . . . . . . Unused Backups 58 | . 5 . . . 9 8 1 . . . . 1 . 1 . 3 1 3 . 6 1 2 . 4 . 2 . 2 . 2 . 7 Power 4 | . 1 . . . 1 . . . . . . . . . . . 1 . . 1 . . . . . . . . . . . . Propulsion 3 | . 1 . . . 1 1 . . . . . . . . . . . . . . . . . . . . . . . . . . Utility 42 | . 1 . . . 3 6 1 . . . . 1 . . . 3 . 3 . 5 . 2 . 4 . 2 . 2 . 2 . 7 Weapon 8 | . 2 . . . 4 1 . . . . . . . 1 . . . . . . . . . . . . . . . . . . Tool/Special 1 | . . . . . . . . . . . . . . . . . . . . . 1 . . . . . . . . . . . Average Slot Usage (%) 86 | . 97 100 100 92 94 92 93 94 98 94 99 91 79 78 78 78 80 80 76 88 93 77 92 84 89 88 88 85 86 86 84 82 Engine 4 | . 12 14 14 14 8 9 9 9 7 7 7 7 6 6 6 6 2 1 5 5 4 . . 2 . . . . . . . . Reactor 2 | . . . . . . . . . . . . . . . . . 2 3 . . . 5 5 2 4 4 4 6 8 8 8 7 Treads 3 | . . . . 10 8 9 5 12 8 7 7 7 6 6 6 2 . . . . . . . . . . . . . . 7 7 Leg 1 | . 15 . . . . . . . . . . . . . . . . . 1 . . 2 5 1 4 4 4 4 4 7 . . Wheel 8 | . 12 28 28 17 16 12 19 11 13 15 15 15 7 6 6 10 10 7 7 10 10 6 5 5 4 4 4 4 4 2 . . Device 7 | . 1 . . . 10 8 9 . 5 7 7 12 14 7 13 8 5 2 12 16 15 9 5 5 3 . 3 4 4 4 4 4 Storage 6 | . 14 14 14 14 9 9 9 9 7 7 7 7 6 6 6 6 5 5 5 5 5 6 10 7 7 4 7 7 4 4 8 7 Hackware 26 | . . . . . . 9 7 19 18 18 15 13 13 16 18 22 33 37 24 22 30 35 36 34 34 44 38 39 43 43 40 42 Protection 10 | . 12 14 14 8 18 17 17 13 18 14 23 9 9 12 6 6 4 4 5 12 9 1 8 13 14 10 10 7 8 8 7 6 Ballistic Cannon 6 | . 19 28 28 28 18 15 8 10 7 7 6 7 5 6 6 5 4 4 7 6 7 1 9 4 4 3 4 3 4 3 4 3 Special Weapon 4 | . . . . . . . 3 6 7 7 7 7 5 5 6 6 5 4 3 5 4 4 5 4 4 3 4 4 4 3 4 3 Peak Build Rating 180 | 5 10 10 12 18 36 55 42 49 50 49 48 55 69 73 64 72 89 97 103 105 102 94 92 93 100 106 123 140 127 154 168 180 Average Rating 83 | 2 9 10 10 12 26 38 36 39 47 45 47 51 63 66 63 67 79 86 89 100 98 78 89 84 99 101 117 126 127 136 166 159 On Entrance 66 | . 5 10 10 12 12 36 39 36 43 45 48 48 54 66 64 62 72 82 39 96 102 57 87 91 90 97 102 115 127 127 154 168 Avg Prop Armor Cover (%) 5 | 32 . . . 10 6 7 8 11 6 6 6 5 4 4 5 5 4 2 1 . . 5 4 3 3 3 3 2 2 2 . . Naked Turns . | . . . . . . . . . . . . . . . . . . . . . . . . . . . . . . . . . Heaviest Build 212 | 8 24 24 34 34 74 87 82 78 86 86 86 92 106 115 88 97 142 141 173 180 162 156 145 159 178 159 179 190 184 184 203 212 Greatest Support 155 | 20 26 26 26 10 38 28 42 26 26 26 26 26 28 28 28 40 40 46 44 44 44 44 28 28 28 28 28 28 28 86 155 155 Greatest Overweight (x) 46 | 1 1 . 1 3 3 3 2 7 8 7 4 4 3 5 3 3 11 46 5 4 3 5 5 6 6 5 6 6 6 6 1 7 Average Overweight (x) 3 | . . . . 3 1 2 1 4 2 2 3 3 3 3 3 2 3 3 3 3 2 3 4 4 5 4 5 5 6 4 1 . Largest Inventory Capacity 25 | 8 10 10 15 15 20 20 20 20 20 20 20 20 20 20 20 20 25 25 25 25 25 25 25 25 25 25 25 25 25 25 25 25 Average Capacity 22 | 7 8 10 10 15 18 20 20 20 20 20 20 20 20 20 20 20 24 25 25 25 25 25 25 25 25 25 25 25 25 25 25 22 Most Carried 25 | 8 10 10 10 11 20 20 20 20 20 20 20 20 20 20 20 20 23 25 25 25 25 25 25 25 24 25 25 25 25 25 23 20 Average Carried 21 | 5 8 10 9 10 16 19 19 19 19 19 20 19 16 19 19 19 20 24 24 24 24 23 24 24 23 24 20 23 25 24 18 16 Final Capacity 25 | 8 10 10 15 15 20 20 20 20 20 20 20 20 20 20 20 20 25 25 25 25 25 25 25 25 25 25 25 25 25 25 25 5 Final Carried 25 | 6 10 10 10 11 20 20 18 20 20 20 20 20 15 20 20 20 23 23 25 25 24 24 25 25 23 25 18 25 25 24 18 . Class Distribution -------------------- 58% | Botlord-Tank 12% | Mutant 11% | Bothacker-Mutant 10% | Botlord-Mutant 3% | Botlord-Skirmisher Dominant Class ---------------- Mutant | -10/Materials Mutant | -10/Mines Mutant | -10/Exiles Mutant | -9/Mines Mutant | -8/Materials Mutant | -8/Garrison Mutant | -8/Materials Bothacker-Mutant | -8/Garrison Bothacker-Mutant | -7/Factory Bothacker-Mutant | -7/Garrison Bothacker-Mutant | -7/Factory Botlord-Mutant | -7/Garrison Botlord-Tank | -6/Factory Botlord-Tank | -6/Garrison Botlord-Tank | -6/Factory Botlord-Tank | -6/Garrison Botlord-Tank | -5/Factory Botlord-Skirmisher | -5/Garrison Botlord-Tank | -4/Factory Botlord-Tank | -4/Garrison Botlord-Tank | -4/Factory Botlord-Mutant | -4/Garrison Botlord-Tank | -4/Factory Botlord-Tank | -4/Garrison Botlord-Tank | -3/Research Botlord-Tank | -3/Garrison Botlord-Tank | -2/Research Botlord-Tank | -2/Garrison Botlord-Tank | -2/Research Botlord-Tank | -2/Garrison Botlord-Tank | -1/Access Botlord-Tank | -1/Command Resources | -11 -10 -10 -10 -9 -8 -8 -8 -8 -7 -7 -7 -7 -6 -6 -6 -6 -5 -5 -4 -4 -4 -4 -4 -4 -3 -3 -2 -2 -2 -2 -1 -1 ----------- Run | Yrd Mat Min Exi Min Mat Gar Mat Gar Fac Gar Fac Gar Fac Gar Fac Gar Fac Gar Fac Gar Fac Gar Fac Gar Res Gar Res Gar Res Gar Acc Com Matter Collected 18122 | 230 378 . . 16 590 1318 634 831 418 520 169 448 854 661 152 632 1400 1231 690 815 172 497 168 732 240 864 1023 1077 . 941 285 136 Remotely 155 | . . . . . 43 112 . . . . . . . . . . . . . . . . . . . . . . . . . . Salvage Created 13898 | . 434 . . 13 496 964 685 485 255 314 115 95 952 585 15 537 1676 869 1043 604 472 212 . 254 249 717 834 448 . 336 62 177 Parts 641 | . 24 . . 3 30 39 45 26 12 11 3 6 52 28 1 29 60 20 42 48 26 20 . 24 13 25 26 4 . 13 2 9 Haulers Intercepted 11 | . 2 . . . 2 . 3 . . . . . 2 . . . 1 . 1 . . . . . . . . . . . . . Recyclers Shooed 11 | . 2 . . . . . . . . . 3 . . . . . 1 . 2 . 1 . . . . . 2 . . . . . Parts Field Recycled 125 | . . . . . . . . . . . . . . . . . . . 27 43 17 38 . . . . . . . . . . Retrieved Matter 2269 | . . . . . . . . . . . . . . . . . . . 793 487 372 617 . . . . . . . . . . Parts Self-Destructed . | . . . . . . . . . . . . . . . . . . . . . . . . . . . . . . . . . Prevented . | . . . . . . . . . . . . . . . . . . . . . . . . . . . . . . . . . Parts Restored . | . . . . . . . . . . . . . . . . . . . . . . . . . . . . . . . . . Kills | -11 -10 -10 -10 -9 -8 -8 -8 -8 -7 -7 -7 -7 -6 -6 -6 -6 -5 -5 -4 -4 -4 -4 -4 -4 -3 -3 -2 -2 -2 -2 -1 -1 ------- Run | Yrd Mat Min Exi Min Mat Gar Mat Gar Fac Gar Fac Gar Fac Gar Fac Gar Fac Gar Fac Gar Fac Gar Fac Gar Res Gar Res Gar Res Gar Acc Com Combat Hostiles Destroyed 344 | . 7 . . 4 12 28 10 21 3 8 . 5 21 23 . 16 21 42 18 31 8 8 . 17 3 14 10 7 . 4 1 2 Melee 1 | . . . . . . . . . . . . . . . . . . 1 . . . . . . . . . . . . . . Guns 1 | . . . . . . . . . . . . . . . . . . . . . 1 . . . . . . . . . . . Cannons 220 | . 7 . . 4 12 18 10 16 3 8 . 5 16 12 . 8 20 18 10 7 4 2 . 1 3 12 10 7 . 4 1 2 AOE 117 | . . . . . . 10 . 3 . . . . 5 11 . 8 . 22 7 24 3 6 . 16 . 2 . . . . . . Classes Destroyed 23 | . 6 . . . 4 3 1 . . 1 . . . 3 . 1 1 . 1 . . . . . . . 2 . . . . . Worker 23 | . . . . . 1 . 4 . . . . . 3 . . . 8 . 3 . 2 . . . . . 1 . . . . 1 Builder 9 | . 2 . . . . . . . . . . . . . . . 6 . . . . . . . . . 1 . . . . . Tunneler 1 | . . . . . . . . . . . . . . . . . . . 1 . . . . . . . . . . . . . Hauler 11 | . 2 . . . 2 . 3 . . . . . 2 . . . 1 . 1 . . . . . . . . . . . . . Recycler 22 | . 3 . . . . . 2 . 2 . 2 . . . . . 6 . 3 . 1 . . . 1 . 2 . . . . . Mechanic 1 | . . . . . . . . . . . . . . . . . . . . . . . . . . . 1 . . . . . Operator 1 | . . . . . 1 . . . . . . . . . . . . . . . . . . . . . . . . . . . Watcher 20 | . 3 . . . 1 . 2 . . . . . 1 1 1 1 3 1 2 . 2 . . . . . 1 . . . . 1 Swarmer 104 | . 3 . . 4 3 4 2 7 . . . 1 5 9 . 5 5 . 5 19 3 4 . 14 . 7 1 3 . . . . Cutter 6 | . . . . . . 3 . . . . . . . . . . . . . 3 . . . . . . . . . . . . Saboteur 4 | . . . . . . . . . . . . . . 1 . . 1 . . . . . . . . . . 2 . . . . Grunt 78 | . 4 . . . 3 9 2 6 2 6 . . 8 7 . 5 2 4 2 3 . 1 . 1 1 6 1 1 . 2 1 1 Brawler 4 | . . . . . . . . . . 2 . . . . . 1 . . 1 . . . . . . . . . . . . . Duelist 7 | . . . . . . . 1 3 . . . . 2 1 . . . . . . . . . . . . . . . . . . Sentry 37 | . . . . . 5 6 3 1 1 . . 1 2 1 . 2 . 5 3 3 . . . 1 1 1 . 1 . . . . Demolisher 4 | . . . . . . . . . . . . . . 1 . . . 1 . . 1 . . . . . 1 . . . . . Specialist 3 | . . . . . . 1 . . . . . . . . . . 2 . . . . . . . . . . . . . . . Hunter 13 | . . . . . . 1 1 2 . . . 2 1 . . 2 3 . . 1 . . . . . . . . . . . . Programmer 55 | . . . . . 1 4 1 3 . . . 1 3 2 . 1 7 3 7 2 4 3 . 1 1 2 6 . . 2 . 1 Heavy 1 | . . . . . . . . . . . . . . . . . . . . . . . . . . . 1 . . . . . Behemoth 4 | . . . . . . . . . . . . . . 1 . . . 1 . 1 . . . . . . . . . 1 . . Executioner 2 | . . . . . . . . . . . . . . . . 1 1 . . . . . . . . . . . . . . . Assembled 30 | . . . . . . . . . . . . . . . . . 1 29 . . . . . . . . . . . . . . Best Kill Streak 14 | . 4 . . 4 5 7 10 4 3 4 2 1 5 6 1 9 13 14 5 12 3 4 . 7 2 3 2 5 . 2 1 1 Combat Bots Only 14 | . 3 . . 4 4 7 3 4 2 4 . 1 3 6 . 9 6 14 5 12 3 4 . 7 2 3 2 5 . 2 1 1 Max Kills in Single Turn 5 | . 1 . . 1 1 3 1 3 1 1 1 1 4 2 1 2 1 3 5 4 3 4 . 4 1 2 2 2 . 1 1 1 Gunslinging . | . . . . . . . . . . . . . . . . . . . . . . . . . . . . . . . . . Exploded 5 | . . . . . . 3 . 2 . . . . 3 2 . 2 . 3 5 4 3 4 . 4 . 2 . . . . . . Melee 1 | . . . . . . . . . . . . . . . . . . 1 . . . . . . . . . . . . . . Uniques/NPCs Destroyed . | . . . . . . . . . . . . . . . . . . . . . . . . . . . . . . . . . Combat | -11 -10 -10 -10 -9 -8 -8 -8 -8 -7 -7 -7 -7 -6 -6 -6 -6 -5 -5 -4 -4 -4 -4 -4 -4 -3 -3 -2 -2 -2 -2 -1 -1 -------- Run | Yrd Mat Min Exi Min Mat Gar Mat Gar Fac Gar Fac Gar Fac Gar Fac Gar Fac Gar Fac Gar Fac Gar Fac Gar Res Gar Res Gar Res Gar Acc Com Hostile Shots Fired 2156 | . 14 . . 38 44 203 52 133 36 15 25 58 121 108 1 73 101 168 81 112 148 74 2 63 22 73 79 69 2 46 14 181 Missed 609 | . 3 . . 1 11 52 12 38 18 5 8 13 42 37 1 19 20 51 27 37 52 26 1 11 1 15 20 22 . 13 5 48 Hits 1547 | . 11 . . 37 33 151 40 95 18 10 17 45 79 71 . 54 81 117 54 75 96 48 1 52 21 58 59 47 2 33 9 133 Melee 34 | . . . . . . 3 . . . 1 . . . . . . . 16 . 2 9 . . . 3 . . . . . . . Projectile 1513 | . 11 . . 37 33 148 40 95 18 9 17 45 79 71 . 54 81 101 54 73 87 48 1 52 18 58 59 47 2 33 9 133 AOE 32 | . . . . . . 2 . . . . . . . . 1 . . 1 . . 2 . . . . . 1 . . 1 . 24 Critical Strikes 89 | . . . . 1 5 7 . 5 1 . . . 1 . . 2 3 1 4 5 11 5 . 1 4 2 3 1 . 2 1 24 Actively Blocked 1 | . . . . . . . . . . . . . . . . . . . . . . . . 1 . . . . . . . . Part Disruptions 6 | . . . . . . . . . . . . . . . . . 2 1 . . . . . . . . . . . . . 3 Damage Taken 25133 | . 122 . . 306 434 1588 351 1138 230 200 88 280 997 657 50 798 1087 1975 795 835 1703 599 25 682 300 1221 990 754 26 913 165 5824 Core 3327 | . 28 . . 57 38 78 41 87 6 11 11 21 18 47 24 67 64 278 20 50 176 60 4 133 . 94 92 88 . 97 11 1626 Absorbed by Shields 8182 | . . . . . 32 912 135 117 45 74 42 181 333 192 2 309 338 359 388 725 217 443 27 411 306 110 855 526 25 462 156 460 Reduced by Siege Mode 317 | . . . . . . . . . . . . . . . . . . . . . . . . . . . . . . . . 317 Redirected to Shielding 141 | . . . . . . . . . . . . . . . . . . . . . . . . 42 4 15 41 24 . 15 . . Ignored by Resistances 1200 | . . . . . . . 5 . . . . 42 259 37 2 230 314 72 15 224 . . . . . . . . . . . . Regen/Repaired (Parts) 4750 | . . . . . . . 10 405 44 28 19 50 162 . 614 . 673 . 57 . 99 . . . 59 891 628 278 . 650 56 27 Core Remaining (%) 77 | 100 . . . 66 . . . 55 . . . 93 . . . 81 . 65 . . . . . 61 . 92 . . . 80 . . Volleys Fired 1607 | . 37 . . 9 41 98 70 97 21 56 20 55 92 56 10 61 123 90 61 71 59 44 6 45 29 52 85 73 1 64 42 39 Largest 2 | . 2 . . 2 2 2 2 2 1 1 1 1 1 2 1 1 1 1 2 2 2 2 1 1 1 1 1 1 1 1 1 2 Hottest 305 | . 66 . . 66 66 250 115 250 40 40 40 40 50 93 50 65 65 250 305 102 110 125 46 65 65 250 65 250 10 65 65 250 Shots Fired 1936 | . 74 . . 18 82 157 104 122 21 56 20 55 92 57 10 61 125 92 109 92 94 48 6 45 29 56 85 75 1 65 42 43 Gun 54 | . 2 . . . . . 23 . . . . . . . . . . . . 3 17 9 . . . . . . . . . . Cannon 1426 | . 72 . . 18 82 145 70 110 10 37 13 34 67 40 3 42 106 68 107 57 61 13 2 12 20 42 51 40 . 48 23 33 Launcher 85 | . . . . . . 12 . . . . . . 1 7 . 7 . 17 . 19 1 5 2 14 . . . . . . . . Special 371 | . . . . . . . 11 12 11 19 7 21 24 10 7 12 19 7 2 13 15 21 2 19 9 14 34 35 1 17 19 10 Kinetic 1441 | . 74 . . 18 82 143 78 107 10 37 13 34 67 40 3 42 106 65 105 60 78 13 2 12 20 41 51 39 . 48 23 30 Thermal 33 | . . . . . . 2 15 3 . . . . . . . . . 3 2 . . 3 . . . 1 . 1 . . . 3 Explosive 85 | . . . . . . 12 . . . . . . 1 7 . 7 . 17 . 19 1 5 2 14 . . . . . . . . Electromagnetic 6 | . . . . . . . . . . . . . . . . . . . . . . 6 . . . . . . . . . . Robot Hit Streak 42 | . 6 . . 2 9 38 42 8 11 7 3 14 16 13 7 7 11 30 11 11 11 9 1 13 8 11 16 17 11 15 4 23 Robot Miss Streak 5 | . 4 . . 4 5 2 4 4 3 2 2 2 2 1 1 1 2 3 4 2 4 1 4 3 2 4 2 1 . 4 3 2 Penetration Max 1 | . . . . . . . . . 1 . . 1 1 1 . . 1 1 . . 1 . . . . . 1 1 . . . . Secondary Targets . | . . . . . . . . . . . . . . . . . . . . . . . . . . . . . . . . . Shots Hit Robots 1223 | . 38 . . 8 52 104 65 64 17 41 11 43 66 37 7 41 86 61 66 48 52 32 3 26 19 37 60 56 1 35 12 35 Core Hits 563 | . 20 . . 4 21 54 26 24 6 11 2 11 27 25 1 23 38 54 38 44 18 13 7 22 4 21 16 14 . 6 4 9 Critical Kills 2 | . . . . . . . . . . . . . . . . . . . . . 2 . . . . . . . . . . . Critical Parts Destroyed . | . . . . . . . . . . . . . . . . . . . . . . . . . . . . . . . . . Critical Strikes 106 | . . . . 1 3 2 2 14 1 1 1 7 11 5 . 5 10 8 9 3 3 1 . . . 4 4 4 . 5 . 2 Destroy 2 | . . . . . . . . . . . . . . . . . . . . . 2 . . . . . . . . . . . Blast 104 | . . . . 1 3 2 2 14 1 1 1 7 11 5 . 5 10 8 9 3 1 1 . . . 4 4 4 . 5 . 2 Melee Attacks . | . . . . . . . . . . . . . . . . . . . . . . . . . . . . . . . . . Impact . | . . . . . . . . . . . . . . . . . . . . . . . . . . . . . . . . . Slashing . | . . . . . . . . . . . . . . . . . . . . . . . . . . . . . . . . . Piercing . | . . . . . . . . . . . . . . . . . . . . . . . . . . . . . . . . . Sneak Attacks . | . . . . . . . . . . . . . . . . . . . . . . . . . . . . . . . . . Combat Hostiles . | . . . . . . . . . . . . . . . . . . . . . . . . . . . . . . . . . Follow-up Attacks . | . . . . . . . . . . . . . . . . . . . . . . . . . . . . . . . . . Damage Inflicted 55554 | . 799 . . 178 1159 3458 1318 1933 312 725 290 777 3601 2829 63 2829 5401 5405 3729 4182 1790 923 72 2307 814 2017 3064 1987 . 1723 170 1699 Guns 736 | . 7 . . . . . 232 . . . . . . . . . . . . 52 394 51 . . . . . . . . . . Cannons 40329 | . 790 . . 178 1159 2128 1086 1665 312 725 290 775 2828 1775 63 1668 5317 3548 2587 1196 1161 278 30 184 814 1834 2831 1780 . 1723 141 1463 Explosions 14369 | . . . . . . 1322 . 255 . . . . 773 1054 . 1161 84 1820 1142 2934 235 594 42 2123 . 183 228 207 . . . 212 Melee . | . . . . . . . . . . . . . . . . . . . . . . . . . . . . . . . . . Ramming 120 | . 2 . . . . 8 . 13 . . . 2 . . . . . 37 . . . . . . . . 5 . . . 29 24 Kinetic 40487 | . 797 . . 178 1159 2053 1175 1642 312 725 290 775 2828 1775 63 1668 5317 3458 2509 1248 1555 278 30 184 814 1834 2831 1699 . 1723 141 1426 Thermal 3680 | . . . . . . 353 143 278 . . . . 544 . . . 84 287 1220 . . 51 . . . 183 . 288 . . . 249 Explosive 11267 | . . . . . . 1044 . . . . . . 229 1054 . 1161 . 1623 . 2934 235 594 42 2123 . . 228 . . . . . Electromagnetic . | . . . . . . . . . . . . . . . . . . . . . . . . . . . . . . . . . Impact . | . . . . . . . . . . . . . . . . . . . . . . . . . . . . . . . . . Slashing . | . . . . . . . . . . . . . . . . . . . . . . . . . . . . . . . . . Piercing . | . . . . . . . . . . . . . . . . . . . . . . . . . . . . . . . . . Highest Corruption 51 | . . . . . . 12 12 14 . . . . . . . . 5 11 5 7 14 16 16 17 3 4 2 3 3 7 . 51 Average Corruption 8 | . . . . . . 11 12 13 . . . . . . . . 4 6 2 6 7 15 16 16 2 3 1 2 3 5 . 10 Corruption Purged . | . . . . . . . . . . . . . . . . . . . . . . . . . . . . . . . . . Corruption Blocked . | . . . . . . . . . . . . . . . . . . . . . . . . . . . . . . . . . Effects 623 | . . . . . . 26 43 64 . . . . . . . . 28 52 12 61 54 70 12 51 3 38 6 28 5 57 . 13 Message Errors 147 | . . . . . . 8 9 12 . . . . . . . . 7 10 2 18 15 22 5 10 . 6 3 4 2 11 . 3 Matter Fused 152 | . . . . . . 7 9 15 . . . . . . . . 9 15 5 18 14 20 1 11 3 10 1 3 . 8 . 3 Heat Flow Errors 63 | . . . . . . 2 5 8 . . . . . . . . 2 5 1 4 6 6 . 8 . 3 1 2 1 8 . 1 Energy Discharges 84 | . . . . . . 2 6 10 . . . . . . . . 3 8 2 6 6 6 3 6 . 3 1 4 1 14 . 3 Parts Rejected 7 | . . . . . . . . 1 . . . . . . . . 1 2 . . . 1 . 1 . 1 . . . . . . Parts Fused 6 | . . . . . . 1 . 1 . . . . . . . . . . . 1 . . . 2 . . . 1 . . . . Data Loss (minor) 77 | . . . . . . 2 9 6 . . . . . . . . 1 3 1 10 7 9 1 5 . 6 . 10 . 6 . 1 Data Loss (major) 27 | . . . . . . . 2 3 . . . . . . . . 2 2 . 2 . 2 1 3 . 2 . 1 1 6 . . Misfires 25 | . . . . . . 3 2 1 . . . . . . . . 2 4 . 1 1 2 . 1 . 4 . 2 . 2 . . Alerts 14 | . . . . . . . . 2 . . . . . . . . 1 1 1 . 1 1 . 2 . 3 . 1 . 1 . . Misdirections 3 | . . . . . . . . . . . . . . . . . . . . . . . 1 1 . . . . . . . 1 Weapon Failures 18 | . . . . . . 1 1 5 . . . . . . . . . 2 . 1 4 1 . 1 . . . . . 1 . 1 Overload Shots . | . . . . . . . . . . . . . . . . . . . . . . . . . . . . . . . . . Overflow Damage 3751 | . 18 . . 7 7 162 12 67 . 5 30 . 324 176 . 42 523 464 248 158 99 . . 97 59 122 540 194 . 259 . 138 Projectiles 3047 | . 18 . . 7 7 62 12 62 . 5 30 . 263 140 . 42 499 373 141 27 47 . . . 59 122 540 194 . 259 . 138 Explosions 704 | . . . . . . 100 . 5 . . . . 61 36 . . 24 91 107 131 52 . . 97 . . . . . . . . Melee . | . . . . . . . . . . . . . . . . . . . . . . . . . . . . . . . . . Knockbacks 218 | . 6 . . 1 4 19 8 13 . 7 1 1 19 3 . 9 28 11 17 5 14 1 1 1 5 6 14 7 . 9 . 8 Impact 1 | . . . . . . . . . . . . . . . . . . . . . . . . . . . 1 . . . . . Kinetic 203 | . 6 . . 1 4 17 8 13 . 6 1 1 17 3 . 8 24 11 17 5 12 1 1 1 5 6 12 7 . 8 . 8 Secondary 14 | . . . . . . 2 . . . 1 . . 2 . . 1 4 . . . 2 . . . . . 1 . . 1 . . Self-Inflicted Damage 593 | . . . . . . 144 . 21 . . . . . . . 98 . 69 61 71 . . . . . 18 87 . . . . 24 Shots 18 | . . . . . . 3 . 2 . . . . . . . 2 . 6 2 1 . . . . . 1 1 . . . . . Rammed 10 | . . . . . . 2 . 1 . . . 1 . . . . . 2 . . . . . . . . 1 . . . 2 1 Targets Rammed 11 | . 1 . . . . 2 . 1 . . . 1 . . . . . 2 . . . . . . . . 1 . . . 2 1 Kicked 1 | . 1 . . . . . . . . . . . . . . . . . . . . . . . . . . . . . . . Crushed . | . . . . . . . . . . . . . . . . . . . . . . . . . . . . . . . . . Highest Temperature 492 | . 124 . . 135 60 293 301 436 6 6 16 54 239 246 4 108 268 438 323 492 282 254 . 264 45 231 263 231 140 233 40 305 Average Temperature 59 | . 34 . . 69 22 76 114 80 6 4 6 14 38 90 3 24 34 55 78 70 60 75 . 107 17 49 28 44 80 50 16 70 Received Heat Transfer 3133 | . 45 . . . 160 295 102 267 60 72 8 72 30 174 . 53 149 496 74 108 199 88 4 57 10 30 272 44 4 76 8 176 Effects 13 | . . . . . . 3 . 1 . . . . . 2 . . . 2 3 . . . . . . . . . . 2 . . Energy Bleed 1 | . . . . . . . . . . . . . . . . . . . . . . . . . . . . . . 1 . . Interference 9 | . . . . . . 3 . . . . . . . 2 . . . . 3 . . . . . . . . . . 1 . . Matter Decay 1 | . . . . . . . . . . . . . . . . . . 1 . . . . . . . . . . . . . . Short Circuit 1 | . . . . . . . . . . . . . . . . . . 1 . . . . . . . . . . . . . . Damage (minor) 1 | . . . . . . . . 1 . . . . . . . . . . . . . . . . . . . . . . . . Siege Activations 1 | . . . . . . . . . . . . . . . . . . . . . . . . . . . . . . . . 1 Total Turns 51 | . . . . . . . . . . . . . . . . . . . . . . . . . . . . . . . . 51 Longest Duration 51 | . . . . . . . . . . . . . . . . . . . . . . . . . . . . . . . . 51 Martial Activations . | . . . . . . . . . . . . . . . . . . . . . . . . . . . . . . . . . Shielding Activations . | . . . . . . . . . . . . . . . . . . . . . . . . . . . . . . . . . Robots Disrupted . | . . . . . . . . . . . . . . . . . . . . . . . . . . . . . . . . . Combat Hostiles . | . . . . . . . . . . . . . . . . . . . . . . . . . . . . . . . . . Robots Corrupted 1 | . . . . . . . . . . . . . . . . . 1 . . . . . . . . . . . . . . . Combat Hostiles . | . . . . . . . . . . . . . . . . . . . . . . . . . . . . . . . . . Parts Fried 1 | . . . . . . . . . . . . . . . . . 1 . . . . . . . . . . . . . . . Impact Corruptions 1 | . . . . . . . . . . . . . . . . . 1 . . . . . . . . . . . . . . . Robots Melted 11 | . . . . . . 2 . 2 . . . . . . . . . 3 2 . . . . . . . . 2 . . . . Combat Hostiles 4 | . . . . . . . . 2 . . . . . . . . . 1 1 . . . . . . . . . . . . . Parts Melted 27 | . . . . . . 4 2 5 . . . 1 1 . . . . 2 3 . . . . . . 4 1 4 . . . . Heat Transferred 9576 | . . . . . . 1600 185 1520 . . . . 300 . . . 50 1280 1480 . . 74 . . . 1040 . 1280 . . . 767 Parts Sabotaged . | . . . . . . . . . . . . . . . . . . . . . . . . . . . . . . . . . Parts Stolen . | . . . . . . . . . . . . . . . . . . . . . . . . . . . . . . . . . Parts Stripped . | . . . . . . . . . . . . . . . . . . . . . . . . . . . . . . . . . Power Chain Reactions . | . . . . . . . . . . . . . . . . . . . . . . . . . . . . . . . . . Alert | -11 -10 -10 -10 -9 -8 -8 -8 -8 -7 -7 -7 -7 -6 -6 -6 -6 -5 -5 -4 -4 -4 -4 -4 -4 -3 -3 -2 -2 -2 -2 -1 -1 ------- Run | Yrd Mat Min Exi Min Mat Gar Mat Gar Fac Gar Fac Gar Fac Gar Fac Gar Fac Gar Fac Gar Fac Gar Fac Gar Res Gar Res Gar Res Gar Acc Com Maximum Alert Level 5 | . . . . . 1 4 3 3 2 3 2 3 4 5 3 4 4 4 3 5 3 4 3 5 4 5 4 4 2 4 3 1 Low Security (%) 8 | 100 100 100 . 100 96 12 12 12 . . . . . . . . . . . . . . . . . . . . . . . 75 Level 1 9 | . . . . . 3 13 . 23 82 14 83 3 . . . . 16 . 57 . . 8 . . . . . . . . . 25 Level 2 22 | . . . . . . 27 78 43 17 53 16 45 38 . 24 33 8 . 38 17 43 13 55 3 . . . 2 100 18 62 . Level 3 34 | . . . . . . 22 8 19 . 32 . 50 52 8 75 59 15 46 3 25 56 68 44 12 91 5 73 87 . 61 37 . Level 4 20 | . . . . . . 24 . . . . . . 8 84 . 6 59 53 . 53 . 9 . 69 8 21 26 9 . 19 . . Level 5 4 | . . . . . . . . . . . . . . 6 . . . . . 3 . . . 14 . 72 . . . . . . High Security . | . . . . . . . . . . . . . . . . . . . . . . . . . . . . . . . . . Max Security . | . . . . . . . . . . . . . . . . . . . . . . . . . . . . . . . . . Peak Influence 2124 | . 70 18 . 70 224 1311 722 841 441 826 433 853 1212 1733 909 1126 1287 1499 770 1615 1097 1267 787 1667 1269 2124 1194 1103 620 1296 789 275 Initial 1194 | . . 18 . . 7 141 638 78 441 184 433 217 447 844 909 447 590 791 770 499 847 333 665 534 937 935 1194 697 620 426 777 271 Average 815 | . 23 2 . 40 122 712 559 501 356 576 346 654 769 1309 778 834 951 1140 438 1094 837 830 695 1403 992 1757 1010 931 592 865 604 77 Influence Increases 22618 | . 287 . . 90 580 1210 451 833 125 762 127 736 1913 969 185 819 1499 888 766 1226 1039 1044 298 1513 570 1319 1053 676 48 1060 319 213 Destroy 0b10 Robot/C 8179 | . 140 . . 80 300 560 200 460 80 400 40 375 735 420 75 405 525 240 270 570 435 330 105 435 180 375 165 147 . 84 24 24 Destroy 0b10 Robot/NC 501 | . 50 . . . 25 20 55 . 10 . 10 . 32 4 4 8 140 12 40 . 32 . 4 . 16 . 24 9 . . . 6 Destroy Leader 1258 | . 40 . . 10 116 40 80 30 10 20 20 40 198 40 34 40 120 32 78 48 52 32 16 48 42 32 18 8 . 12 . 2 Allied During Kill 4081 | . . . . . 24 . . 4 10 113 35 203 640 124 54 155 315 27 3 88 331 259 125 483 238 407 186 105 . 96 24 32 Successful Hack 280 | . 6 . . . 17 24 . 14 14 14 21 . 27 33 6 . 39 . 35 . 13 . . . . . . 17 . . . . Select Force Hacks 23 | . . . . . . . . . . . . . 23 . . . . . . . . . . . . . . . . . . . Disable Machine 864 | . 45 . . . 45 15 45 15 . . . . 144 . 12 . 96 . 144 12 60 24 . 24 . . 84 36 . 9 27 27 Anti-Garrison Action 3177 | . . . . . . 400 . 250 . 150 . 88 . 227 . 152 . 339 . 302 . 303 . 227 . 227 . 242 . 270 . . Destroy Structure 3718 | . 6 . . . 8 91 26 45 1 20 1 30 78 85 . 59 180 142 196 206 92 96 48 296 94 266 576 100 48 562 244 122 Lose Combat Pursuer 537 | . . . . . 45 60 45 15 . 45 . . 36 36 . . 84 96 . . 24 . . . . 12 . 12 . 27 . . Influence Decreases 22618 | . 239 48 . 70 382 117 1641 113 702 200 643 193 1560 442 1279 332 1494 550 1521 325 2178 253 802 609 990 442 2247 503 583 332 1191 637 Entered New Map 10620 | . . 30 . . 13 77 673 43 400 80 393 93 406 362 824 192 536 340 699 215 768 143 602 229 730 312 930 233 483 142 519 153 Time Decay 5659 | . 196 18 . 60 339 . 458 . 302 . 230 . 589 . 160 . 598 . 592 . 565 . 120 . 140 . 542 . 100 . 452 198 Lost Part 479 | . . . . 10 10 40 10 20 . . . . 10 . . 20 10 90 20 30 60 50 . 20 . 10 20 . . 30 . 19 Lost Ally 3667 | . . . . . 20 . . 50 . 120 20 100 280 80 20 120 200 120 60 80 410 60 80 360 120 120 480 120 . 160 220 267 Purge Threat 2193 | . 43 . . . . . 500 . . . . . 275 . 275 . 150 . 150 . 375 . . . . . 275 150 . . . . Squads Dispatched 75 | . . . . . 2 . . . 1 . 1 . 18 . 3 . 11 . 6 . 12 . 2 . 5 . 10 . . . 3 1 Investigation 5 | . . . . . 1 . . . . . . . 1 . . . 1 . . . . . 1 . 1 . . . . . . . Extermination 22 | . . . . . . . . . 1 . 1 . 4 . . . 3 . 4 . 3 . . . . . 3 . . . 2 1 Reinforcement 25 | . . . . . . . . . . . . . 8 . 1 . 4 . 2 . 6 . 1 . 1 . 2 . . . . . Assault 17 | . . . . . . . . . . . . . 4 . . . 3 . . . 3 . . . 1 . 5 . . . 1 . Garrison 6 | . . . . . 1 . . . . . . . 1 . 2 . . . . . . . . . 2 . . . . . . . Intercept . | . . . . . . . . . . . . . . . . . . . . . . . . . . . . . . . . . Searches Triggered . | . . . . . . . . . . . . . . . . . . . . . . . . . . . . . . . . . Unchained Authorized 1 | . . . . . . . . . . . . . . . . . . . . . . . . . . . . . . . 1 . Construction Impeded 5 | . . . . . . . . . . . . . 1 . . . 2 . . . 1 . . . 1 . . . . . . . Haulers Reinforced 5 | . . . . . . . . . . . . . 2 . . . 1 . . . 1 . 1 . . . . . . . . . Active Scanning Responses . | . . . . . . . . . . . . . . . . . . . . . . . . . . . . . . . . . Cargo Convoy Interrupts 2 | . . . . . . . . . . . . . . . . . 1 . . . . . . . . . 1 . . . . . Alert ID Control Effect 257 | . . . . . . . . . . . . . . . . . . . . . . . . 11 8 14 75 28 2 40 59 20 Stealth | -11 -10 -10 -10 -9 -8 -8 -8 -8 -7 -7 -7 -7 -6 -6 -6 -6 -5 -5 -4 -4 -4 -4 -4 -4 -3 -3 -2 -2 -2 -2 -1 -1 --------- Run | Yrd Mat Min Exi Min Mat Gar Mat Gar Fac Gar Fac Gar Fac Gar Fac Gar Fac Gar Fac Gar Fac Gar Fac Gar Res Gar Res Gar Res Gar Acc Com Distress Signals 23 | . . . . . 1 . 2 . . . . . 3 . . 1 3 1 3 . 1 . . . 1 . 4 . . . 2 1 Communications Jammed 1011 | . . . . . . . . . . . . . . . . . . . . . 77 . 3 . 303 . 308 . . . 314 6 Distress Signals 1005 | . . . . . . . . . . . . . . . . . . . . . 77 . 1 . 300 . 307 . . . 314 6 Times Spotted 911 | . 16 . . 4 25 26 19 30 16 27 7 26 62 32 9 27 70 82 26 28 47 26 7 32 18 33 59 41 1 46 41 28 Peak Tracking Total 13 | . 4 . . 4 4 6 4 4 7 9 3 5 10 6 3 11 12 13 5 6 9 3 3 8 8 6 7 6 1 13 4 5 Tactical Retreats 36 | . . . . . 2 3 3 1 . 3 . . 3 3 . . 7 6 . . 2 . . . . 1 . 1 . 1 . . Traps | -11 -10 -10 -10 -9 -8 -8 -8 -8 -7 -7 -7 -7 -6 -6 -6 -6 -5 -5 -4 -4 -4 -4 -4 -4 -3 -3 -2 -2 -2 -2 -1 -1 ------- Run | Yrd Mat Min Exi Min Mat Gar Mat Gar Fac Gar Fac Gar Fac Gar Fac Gar Fac Gar Fac Gar Fac Gar Fac Gar Res Gar Res Gar Res Gar Acc Com Traps Triggered 80 | . . . . . 1 9 . 4 1 2 1 6 1 9 . 5 . 6 . 4 . 11 . 11 . 2 3 2 . 2 . . Indirectly . | . . . . . . . . . . . . . . . . . . . . . . . . . . . . . . . . . Trap Hack Attempts . | . . . . . . . . . . . . . . . . . . . . . . . . . . . . . . . . . Triggered . | . . . . . . . . . . . . . . . . . . . . . . . . . . . . . . . . . Disarmed . | . . . . . . . . . . . . . . . . . . . . . . . . . . . . . . . . . Reprogrammed . | . . . . . . . . . . . . . . . . . . . . . . . . . . . . . . . . . Reused . | . . . . . . . . . . . . . . . . . . . . . . . . . . . . . . . . . Traps Extracted . | . . . . . . . . . . . . . . . . . . . . . . . . . . . . . . . . . Installed . | . . . . . . . . . . . . . . . . . . . . . . . . . . . . . . . . . Triggered . | . . . . . . . . . . . . . . . . . . . . . . . . . . . . . . . . . Machines | -11 -10 -10 -10 -9 -8 -8 -8 -8 -7 -7 -7 -7 -6 -6 -6 -6 -5 -5 -4 -4 -4 -4 -4 -4 -3 -3 -2 -2 -2 -2 -1 -1 ---------- Run | Yrd Mat Min Exi Min Mat Gar Mat Gar Fac Gar Fac Gar Fac Gar Fac Gar Fac Gar Fac Gar Fac Gar Fac Gar Res Gar Res Gar Res Gar Acc Com Machines Disabled 127 | . 3 . . . 3 7 3 4 . 3 . 2 12 4 1 5 8 3 12 5 5 9 . 6 . 4 7 9 . 6 3 3 Max in Single Turn 7 | . 1 . . . 1 1 1 1 . 1 . 1 7 1 1 1 3 1 5 1 1 1 . 1 . 1 1 1 . 1 1 1 Garrison Access 2 | . . . . . . . . . 1 . . . 1 . . . . . . . . . . . . . . . . . . . Garrison Relay 51 | . . . . . . 7 . 3 . 3 . 2 . 4 . 4 . 3 . 4 . 5 . 4 . 4 . 5 . 3 . . Machines Repaired . | . . . . . . . . . . . . . . . . . . . . . . . . . . . . . . . . . Machines Dismantled . | . . . . . . . . . . . . . . . . . . . . . . . . . . . . . . . . . Machines Sabotaged . | . . . . . . . . . . . . . . . . . . . . . . . . . . . . . . . . . Overloaded Fab Kills . | . . . . . . . . . . . . . . . . . . . . . . . . . . . . . . . . . Hacking | -11 -10 -10 -10 -9 -8 -8 -8 -8 -7 -7 -7 -7 -6 -6 -6 -6 -5 -5 -4 -4 -4 -4 -4 -4 -3 -3 -2 -2 -2 -2 -1 -1 --------- Run | Yrd Mat Min Exi Min Mat Gar Mat Gar Fac Gar Fac Gar Fac Gar Fac Gar Fac Gar Fac Gar Fac Gar Fac Gar Res Gar Res Gar Res Gar Acc Com Machines Accessed 116 | . 6 . 2 1 9 2 5 2 7 1 4 . 6 4 2 3 10 1 15 1 7 3 3 2 2 3 5 3 2 3 1 1 Terminals 70 | . 4 . . . 6 2 2 2 2 1 2 . 3 4 . 3 4 1 8 1 5 3 1 2 . 3 3 3 . 3 1 1 Fabricators . | . . . . . . . . . . . . . . . . . . . . . . . . . . . . . . . . . Repair Stations 11 | . . . . . 1 . 1 . . . 1 . 1 . 1 . 3 . 1 . 1 . . . 1 . . . . . . . Recycling Units 9 | . 2 . . . . . . . 2 . . . . . . . . . 4 . . . 1 . . . . . . . . . Scanalyzers 9 | . . . . . 1 . 1 . 1 . . . 1 . . . 2 . 1 . . . . . . . 1 . 1 . . . Garrison Access 14 | . . . . . 1 . 1 . 2 . 1 . 1 . 1 . 1 . 1 . 1 . 1 . 1 . 1 . 1 . . . Total Hacks 247 | . 16 . 5 1 22 4 16 4 16 4 7 . 12 7 5 4 19 2 42 1 12 4 6 3 3 5 8 9 3 5 1 1 Successful 118 | . 6 . 5 1 10 2 11 1 12 1 3 . 6 4 4 1 12 . 21 1 4 . 1 . 3 . 2 3 1 2 . 1 Failed 129 | . 10 . . . 12 2 5 3 4 3 4 . 6 3 1 3 7 2 21 . 8 4 5 3 . 5 6 6 2 3 1 . Catastrophic 34 | . 3 . . . 2 . 2 2 3 1 2 . 1 . . . 1 1 4 . 2 2 2 . . 1 2 2 . . 1 . Database Lockouts . | . . . . . . . . . . . . . . . . . . . . . . . . . . . . . . . . . Manual 88 | . 11 . 1 . 8 . 6 . 6 . 6 . 6 . 1 . 10 . 14 . 4 1 . 1 2 2 4 3 . 2 . . Terminals 157 | . 13 . . . 15 4 7 4 6 4 5 . 6 7 . 4 9 2 26 1 9 4 2 3 . 5 5 9 . 5 1 1 Fabricators . | . . . . . . . . . . . . . . . . . . . . . . . . . . . . . . . . . Repair Stations 23 | . . . . . 2 . 1 . . . 1 . 2 . 4 . 5 . 4 . 2 . . . 2 . . . . . . . Recycling Units 18 | . 3 . . . . . . . 4 . . . . . . . . . 8 . . . 3 . . . . . . . . . Scanalyzers 24 | . . . . . 3 . 5 . 4 . . . 1 . . . 4 . 3 . . . . . . . 2 . 2 . . . Garrison Access 19 | . . . . . 2 . 3 . 2 . 1 . 3 . 1 . 1 . 1 . 1 . 1 . 1 . 1 . 1 . . . Terminal Hacks 41 | . 2 . 5 1 4 2 2 1 2 1 . . 1 4 . 1 1 . 8 1 1 . . . . . . 2 . 1 . 1 Record 5 | . . . 4 . . . . . . . . . . . . . . . 1 . . . . . . . . . . . . . Prototype ID Bank 4 | . 1 . . . 1 . . . 1 . . . . . . . . . 1 . . . . . . . . . . . . . Open Door 5 | . . . . 1 . . . . . . . . . 1 . . . . . . . . . . . . . 1 . 1 . 1 Emergency Access Points 3 | . . . . . . 1 . . . . . . . 1 . . . . . 1 . . . . . . . . . . . . Machine Index 1 | . . . . . . . . . . . . . . . . . . . 1 . . . . . . . . . . . . . Terminal Index 1 | . . . . . . . . . . . . . . . . . . . . . 1 . . . . . . . . . . . Scanalyzer Index 2 | . . . . . 1 . . . . . . . . . . . . . 1 . . . . . . . . . . . . . Alert Level 2 | . . . . . 1 . 1 . . . . . . . . . . . . . . . . . . . . . . . . . Unreport Threat 3 | . 1 . . . . . . . . . . . . . . . 1 . 1 . . . . . . . . . . . . . Locate Traps 5 | . . . . . 1 . 1 . 1 . . . 1 . . . . . 1 . . . . . . . . . . . . . Investigation Status 1 | . . . . . . . . . . . . . . . . . . . 1 . . . . . . . . . . . . . Zone Layout 1 | . . . . . . . . . . . . . . . . . . . 1 . . . . . . . . . . . . . Garrison Registry 4 | . . . . . . . . 1 . 1 . . . 1 . 1 . . . . . . . . . . . . . . . . Patrol Navigation 3 | . . . . . . 1 . . . . . . . 1 . . . . . . . . . . . . . 1 . . . . Proto ID Catalog 1 | . . . 1 . . . . . . . . . . . . . . . . . . . . . . . . . . . . . Fabricator Hacks . | . . . . . . . . . . . . . . . . . . . . . . . . . . . . . . . . . Repair Station Hacks 7 | . . . . . 1 . . . . . . . . . 2 . 2 . 2 . . . . . . . . . . . . . Scan Component 4 | . . . . . 1 . . . . . . . . . 1 . 1 . 1 . . . . . . . . . . . . . Repair 3 | . . . . . . . . . . . . . . . 1 . 1 . 1 . . . . . . . . . . . . . Recycling Unit Hacks 8 | . 2 . . . . . . . 2 . . . . . . . . . 4 . . . . . . . . . . . . . Report Inventory 1 | . . . . . . . . . 1 . . . . . . . . . . . . . . . . . . . . . . . Retrieve Components 7 | . 2 . . . . . . . 1 . . . . . . . . . 4 . . . . . . . . . . . . . Scanalyzer 17 | . . . . . 2 . 5 . 4 . . . 1 . . . 3 . 2 . . . . . . . . . . . . . Retrieve Study 17 | . . . . . 2 . 5 . 4 . . . 1 . . . 3 . 2 . . . . . . . . . . . . . Garrison Access Hacks 15 | . . . . . 1 . 2 . 2 . 1 . 1 . 1 . 1 . 1 . 1 . 1 . 1 . 1 . 1 . . . Unlock Access 13 | . . . . . 1 . 1 . 1 . 1 . 1 . 1 . 1 . 1 . 1 . 1 . 1 . 1 . 1 . . . Seal Access 1 | . . . . . . . . . 1 . . . . . . . . . . . . . . . . . . . . . . . Coupler Status 1 | . . . . . . . 1 . . . . . . . . . . . . . . . . . . . . . . . . . Unauthorized Hacks 30 | . 2 . . . 2 . 2 . 2 . 2 . 3 . 1 . 5 . 4 . 2 . . . 2 . 1 1 . 1 . . Terminals 16 | . 2 . . . 1 . 1 . 1 . 1 . . . . . 3 . 3 . 1 . . . . . 1 1 . 1 . . Botnet 16 | . 2 . . . 1 . 1 . 1 . 1 . . . . . 3 . 3 . 1 . . . . . 1 1 . 1 . . Fabricators . | . . . . . . . . . . . . . . . . . . . . . . . . . . . . . . . . . Repair Stations 9 | . . . . . . . . . . . 1 . 1 . 1 . 2 . 1 . 1 . . . 2 . . . . . . . Mechanics 8 | . . . . . . . . . . . 1 . 1 . 1 . 2 . 1 . 1 . . . 1 . . . . . . . Patch 1 | . . . . . . . . . . . . . . . . . . . . . . . . . 1 . . . . . . . Recycling Units 1 | . . . . . . . . . 1 . . . . . . . . . . . . . . . . . . . . . . . Recyclers 1 | . . . . . . . . . 1 . . . . . . . . . . . . . . . . . . . . . . . Scanalyzers . | . . . . . . . . . . . . . . . . . . . . . . . . . . . . . . . . . Garrison Access 4 | . . . . . 1 . 1 . . . . . 2 . . . . . . . . . . . . . . . . . . . Restock 3 | . . . . . 1 . 1 . . . . . 1 . . . . . . . . . . . . . . . . . . . Eject 1 | . . . . . . . . . . . . . 1 . . . . . . . . . . . . . . . . . . . Data Cores Recovered 3 | . . . . . 1 . . . . . . . . . . . . . . . 1 . . . . . 1 . . . . . Used 1 | . . . . . . . . . . . . . . . . . . . . . 1 . . . . . . . . . . . Hacking Detections 86 | . 5 . . . 8 1 4 2 4 1 3 . 4 1 1 2 5 1 12 1 6 3 3 2 2 3 4 3 2 2 1 . Full Trace Events 2 | . . . . . . . . . . . . . . . . . . . . . . 1 1 . . . . . . . . . Feedback Events . | . . . . . . . . . . . . . . . . . . . . . . . . . . . . . . . . . Feedback Blocked . | . . . . . . . . . . . . . . . . . . . . . . . . . . . . . . . . . Robot Schematics Acquired . | . . . . . . . . . . . . . . . . . . . . . . . . . . . . . . . . . Robots Built . | . . . . . . . . . . . . . . . . . . . . . . . . . . . . . . . . . Authchips . | . . . . . . . . . . . . . . . . . . . . . . . . . . . . . . . . . Time . | . . . . . . . . . . . . . . . . . . . . . . . . . . . . . . . . . Total Robot Build Rating . | . . . . . . . . . . . . . . . . . . . . . . . . . . . . . . . . . Part Schematics Acquired . | . . . . . . . . . . . . . . . . . . . . . . . . . . . . . . . . . Parts Built . | . . . . . . . . . . . . . . . . . . . . . . . . . . . . . . . . . Authchips . | . . . . . . . . . . . . . . . . . . . . . . . . . . . . . . . . . Time . | . . . . . . . . . . . . . . . . . . . . . . . . . . . . . . . . . Total Part Build Rating . | . . . . . . . . . . . . . . . . . . . . . . . . . . . . . . . . . Part Studies Acquired 14 | . . . . . 2 . 3 . 3 . . . 1 . . . 3 . 2 . . . . . . . . . . . . . Parts Repaired 3 | . . . . . . . . . . . . . . . 1 . 1 . 1 . . . . . . . . . . . . . Time 168 | . . . . . . . . . . . . . . . 56 . 56 . 56 . . . . . . . . . . . . . Parts Recycled . | . . . . . . . . . . . . . . . . . . . . . . . . . . . . . . . . . Recycled Matter . | . . . . . . . . . . . . . . . . . . . . . . . . . . . . . . . . . Retrieved Matter . | . . . . . . . . . . . . . . . . . . . . . . . . . . . . . . . . . Retrieved Components 11 | . 3 . . . . . . . 2 . . . . . . . . . 6 . . . . . . . . . . . . . Parts Scanalyzed . | . . . . . . . . . . . . . . . . . . . . . . . . . . . . . . . . . Part Schematics Acquired . | . . . . . . . . . . . . . . . . . . . . . . . . . . . . . . . . . Parts Damaged . | . . . . . . . . . . . . . . . . . . . . . . . . . . . . . . . . . Bothacking | -11 -10 -10 -10 -9 -8 -8 -8 -8 -7 -7 -7 -7 -6 -6 -6 -6 -5 -5 -4 -4 -4 -4 -4 -4 -3 -3 -2 -2 -2 -2 -1 -1 ------------ Run | Yrd Mat Min Exi Min Mat Gar Mat Gar Fac Gar Fac Gar Fac Gar Fac Gar Fac Gar Fac Gar Fac Gar Fac Gar Res Gar Res Gar Res Gar Acc Com Used RIF Installer 15 | . . . . . . 1 . 1 . 1 . 2 . 1 . 1 . 1 . 1 . 1 . 1 . 1 . 2 . 1 . . Coupler Efficiency 1 | . . . . . . . . . . . . . . . . . . . . . . . . . . . . 1 . . . . Hotswap 1 | . . . . . . . . . . 1 . . . . . . . . . . . . . . . . . . . . . . Threat Obfuscator 2 | . . . . . . . . . . . . 1 . . . . . . . . . . . . . . . 1 . . . . Signal Jammer 1 | . . . . . . . . . . . . . . . . . . . . 1 . . . . . . . . . . . . Zone Cloak 1 | . . . . . . . . . . . . . . . . 1 . . . . . . . . . . . . . . . . Robot Detection 1 | . . . . . . . . . . . . . . . . . . . . . . 1 . . . . . . . . . . Watcher Feeds 1 | . . . . . . . . 1 . . . . . . . . . . . . . . . . . . . . . . . . Alert ID Control 1 | . . . . . . . . . . . . . . . . . . . . . . . . 1 . . . . . . . . Structural Interface 1 | . . . . . . . . . . . . . . 1 . . . . . . . . . . . . . . . . . . Autooverride 2 | . . . . . . . . . . . . . . . . . . 1 . . . . . . . 1 . . . . . . Autoassimilate 1 | . . . . . . . . . . . . 1 . . . . . . . . . . . . . . . . . . . . Crosswire 1 | . . . . . . . . . . . . . . . . . . . . . . . . . . . . . . 1 . . Robots Hacked 333 | . . . . . . . 3 8 8 13 3 9 18 12 3 5 16 10 4 10 26 22 6 19 6 22 28 24 1 22 25 10 Non-combat 50 | . . . . . . . 3 . 5 . 1 . 4 1 1 . 8 . 1 . 5 . 1 . 2 2 10 2 . . 3 1 Combat 283 | . . . . . . . . 8 3 13 2 9 14 11 2 5 8 10 3 10 21 22 5 19 4 20 18 22 1 22 22 9 Autooverrided 62 | . . . . . . . . . . . . . . . . . . 1 . 3 6 2 1 1 1 7 6 8 . 12 9 5 Autoassimilated 76 | . . . . . . . . . . . . 1 4 3 . 1 5 3 2 3 11 5 3 5 1 8 4 4 . 3 8 2 Robot Hacks Applied 222 | . . . . . . . 9 8 8 14 4 9 17 9 4 4 12 6 2 5 11 16 2 13 4 7 22 14 1 8 10 3 parse_system 13 | . . . . . . . . . 1 . 2 2 . . . 1 1 1 . 2 . 1 . . . . . . . 1 1 . start_evac 1 | . . . . . . . . . . . . . . . . . . . . . . . . . . . 1 . . . . . drop_inventory 14 | . . . . . . . 1 . 4 . . . . . . . 2 . 1 . 2 . 1 . . . 2 . . . 1 . recall_reinforcements 1 | . . . . . . . . . . . . . 1 . . . . . . . . . . . . . . . . . . . purge_threat 15 | . . . . . . . 5 . . . . . 2 . 2 . . . . . 3 . . . . . 2 1 . . . . block_reporting 1 | . . . . . . . 1 . . . . . . . . . . . . . . . . . . . . . . . . . map_route 5 | . . . . . . . . . . . . . . . . . . . . . 1 . . . . . 2 . . . 1 1 redirect_shields 1 | . . . . . . . . . . . . . 1 . . . . . . . . . . . . . . . . . . . emergency_deploy 1 | . . . . . . . . . . . . . . . . . 1 . . . . . . . . . . . . . . . disrupt_area 1 | . . . . . . . . . . . . . . . . . . . . . . . . . . . . . . . 1 . spike_heat 1 | . . . . . . . . . . . . . . . . . . . . . . . . 1 . . . . . . . . amplify_resonance 10 | . . . . . . . . . 1 2 . . 3 1 . . . 1 . . . . 1 . . . . . . . 1 . disable_weapons 3 | . . . . . . . . . . 1 . . . . . . . . . . . . . 1 1 . . . . . . . overwrite_iff 22 | . . . . . . . . 1 1 5 . 1 2 3 . . 1 1 1 . 2 . . 2 . . . 1 . . 1 . streamctrl_low 1 | . . . . . . . . . . . . . 1 . . . . . . . . . . . . . . . . . . . streamctrl_high 2 | . . . . . . . . 2 . . . . . . . . . . . . . . . . . . . . . . . . formatsys_low 19 | . . . . . . . 2 . . . 1 . 1 . . . 2 . . . 1 . . . 2 2 5 2 . . 1 . formatsys_high 108 | . . . . . . . . 5 1 6 1 6 5 5 2 3 5 3 . 3 2 14 . 9 1 5 10 9 1 7 3 2 formatsys_deep 3 | . . . . . . . . . . . . . 1 . . . . . . . . 1 . . . . . 1 . . . . Relay Couplers Released 227 | . . . . . 4 28 4 11 . 13 . 7 5 19 . 19 2 10 . 19 . 17 . 19 . 19 . 20 . 11 . . Machine Destruction 211 | . . . . . . 28 . 11 . 13 . 7 2 19 . 19 . 10 . 19 . 17 . 19 . 16 . 20 . 11 . . Programmers 16 | . . . . . 4 . 4 . . . . . 3 . . . 2 . . . . . . . . 3 . . . . . . Attached 99 | . . . . . . . 3 6 3 5 . 5 5 6 . 7 2 4 2 4 2 9 . 7 2 9 1 8 . 5 . 4 Crosswired 7 | . . . . . . . . . . . . . . . . . . . . . . . . . . . . . . 7 . . Fabnet Peak Effective % . | . . . . . . . . . . . . . . . . . . . . . . . . . . . . . . . . . Robots Rewired 19 | . . . . . . . . . . . . 3 . . . 1 . . . 4 . 2 . 1 . 1 . 5 . 2 . . Allies Hacked 17 | . . . . . . . . 1 . . . . . . . . 2 . . . 1 . . . . 1 5 . . 2 2 3 Hacks Repelled . | . . . . . . . . . . . . . . . . . . . . . . . . . . . . . . . . . Allies | -11 -10 -10 -10 -9 -8 -8 -8 -8 -7 -7 -7 -7 -6 -6 -6 -6 -5 -5 -4 -4 -4 -4 -4 -4 -3 -3 -2 -2 -2 -2 -1 -1 -------- Run | Yrd Mat Min Exi Min Mat Gar Mat Gar Fac Gar Fac Gar Fac Gar Fac Gar Fac Gar Fac Gar Fac Gar Fac Gar Res Gar Res Gar Res Gar Acc Com Total Allies 331 | . . . . 2 . . 2 8 2 13 2 11 18 12 2 5 13 8 3 15 22 29 4 20 5 23 24 31 1 25 22 9 Largest Group 25 | . . . . 2 2 . 2 3 4 8 8 14 15 7 7 8 8 4 1 9 10 19 19 18 17 20 22 20 21 25 24 18 Highest-Rated Group 1807 | . . . . 49 49 . 24 46 60 247 274 346 379 239 239 248 439 116 47 364 494 989 1059 1012 995 1198 1391 1440 1504 1807 1563 1288 Highest-Rated Ally 219 | . . . . 31 31 . 14 21 16 95 95 95 90 46 46 119 119 49 47 95 95 148 148 148 148 148 183 183 183 183 219 219 Total Orders 96 | . . . . 1 . . 3 15 1 2 3 8 3 . . . 2 . . 2 3 . . 2 1 8 6 4 . 10 17 5 STAY 28 | . . . . . . . 1 7 . 1 . 2 . . . . . . . 1 . . . . . . . . . 2 12 2 ROAM 5 | . . . . . . . . . . . . . . . . . . . . . . . . 1 . 2 . . . 1 1 . FOLLOW 13 | . . . . . . . . 1 . . . . . . . . . . . 1 . . . 1 . 2 . 2 . 3 1 2 AID 49 | . . . . . . . 2 7 1 1 3 6 3 . . . 2 . . . 3 . . . 1 4 6 2 . 4 3 1 RETURN 1 | . . . . 1 . . . . . . . . . . . . . . . . . . . . . . . . . . . . Ally Attacks 2730 | . . . . . 7 . . 31 10 104 9 78 180 64 24 53 115 35 5 52 150 112 45 142 118 129 427 163 . 279 253 145 Total Damage 87688 | . . . . . 104 . . 430 150 1419 223 2269 4027 1341 626 1213 3546 630 107 1167 3714 3373 999 4411 4228 4303 16337 5468 . 12535 9630 5438 Kills 491 | . . . . . 3 . . 2 1 13 2 14 31 5 5 12 26 3 . 7 25 15 8 25 20 25 81 33 2 49 64 20 Allies Corrupted 26 | . . . . . . . . . . 1 . . 1 . . . 1 . 1 . . . . 2 . . 10 1 . 2 . 7 Allies Melted 6 | . . . . . . . . . . . . . . . . . . 1 . 1 . . . 1 . . . . . 2 1 . Intel | -11 -10 -10 -10 -9 -8 -8 -8 -8 -7 -7 -7 -7 -6 -6 -6 -6 -5 -5 -4 -4 -4 -4 -4 -4 -3 -3 -2 -2 -2 -2 -1 -1 ------- Run | Yrd Mat Min Exi Min Mat Gar Mat Gar Fac Gar Fac Gar Fac Gar Fac Gar Fac Gar Fac Gar Fac Gar Fac Gar Res Gar Res Gar Res Gar Acc Com Active Infowar (turns) 262 | . . . . . 260 . . . . . . . . . . . . . 2 . . . . . . . . . . . . . Optics 260 | . . . . . 260 . . . . . . . . . . . . . . . . . . . . . . . . . . . ECM 2 | . . . . . . . . . . . . . . . . . . . 2 . . . . . . . . . . . . . Robot Analysis Total . | . . . . . . . . . . . . . . . . . . . . . . . . . . . . . . . . . Derelict Logs Recovered 2 | . . 2 . . . . . . . . . . . . . . . . . . . . . . . . . . . . . . Drone Launches 10 | . . . . 1 . . . . . . . . . . . . . . . . 8 . . . . . . 1 . . . . Drone Recoveries 8 | . . . . 1 . . . . . . . . . . . . . . . . 7 . . . . . . . . . . . Exploration | -11 -10 -10 -10 -9 -8 -8 -8 -8 -7 -7 -7 -7 -6 -6 -6 -6 -5 -5 -4 -4 -4 -4 -4 -4 -3 -3 -2 -2 -2 -2 -1 -1 ------------- Run | Yrd Mat Min Exi Min Mat Gar Mat Gar Fac Gar Fac Gar Fac Gar Fac Gar Fac Gar Fac Gar Fac Gar Fac Gar Res Gar Res Gar Res Gar Acc Com Turns Passed 35777 | 53 779 178 217 131 828 1579 1145 1451 660 920 485 883 1843 1237 320 956 1908 1509 1878 1985 1691 1753 249 1405 286 1640 1556 1789 205 2235 1135 888 Spaces Moved 18862 | 39 562 198 234 76 503 928 681 724 443 478 330 493 1032 667 186 569 1008 730 984 1079 961 914 124 666 103 782 732 838 94 901 409 394 Core 139 | 22 . . . . . . . . . . . . . . . . . 1 . . . . . . . . . . . . . 116 Treads 862 | . . . . . . 9 . 2 . 94 1 32 . 6 . . . 31 . . . . . . . . . . . . 409 278 Legs 562 | 17 248 . . . . . . . . . . . . . . . . . . . . . . . . . . . . 297 . . Wheels 17299 | . 314 198 234 76 503 919 681 722 443 384 329 461 1032 661 186 569 1008 698 984 1079 961 914 124 666 103 782 732 838 94 604 . . Hover . | . . . . . . . . . . . . . . . . . . . . . . . . . . . . . . . . . Flight . | . . . . . . . . . . . . . . . . . . . . . . . . . . . . . . . . . Fastest Speed 50 | 50 90 90 90 125 90 120 105 110 110 110 125 125 125 145 145 120 115 130 135 141 124 124 150 150 165 150 165 165 180 165 237 50 Average Speed 148 | 94 107 90 91 125 112 128 115 147 123 152 125 135 140 147 145 127 137 150 148 142 140 151 164 159 179 164 179 179 180 206 237 180 Slowest Speed 2350 | 120 190 90 105 125 125 410 130 290 190 290 330 330 145 370 145 145 245 2350 165 158 141 165 165 165 180 165 180 180 180 540 237 400 Overloaded Moves . | . . . . . . . . . . . . . . . . . . . . . . . . . . . . . . . . . Propulsion Burnouts . | . . . . . . . . . . . . . . . . . . . . . . . . . . . . . . . . . Robots Hopped . | . . . . . . . . . . . . . . . . . . . . . . . . . . . . . . . . . Potential Cave-ins . | . . . . . . . . . . . . . . . . . . . . . . . . . . . . . . . . . Cave-ins Triggered . | . . . . . . . . . . . . . . . . . . . . . . . . . . . . . . . . . Exploration Rate (%) 49 | 3 78 53 61 23 48 89 42 73 18 56 9 49 36 92 5 84 35 59 30 93 31 97 6 95 8 92 32 97 4 89 21 20 Regions Visited 32 Branch Regions 4 Pre-discovered Areas 1 | . . . 1 . . . . . . . . . . . . . . . . . . . . . . . . . . . . . Known Exits Taken 13 | . . . . . 1 . 1 . 1 . 1 . 1 . 1 . 1 . 1 . 1 . 1 . 1 . 1 . 1 . . . Unknown Exits Taken 6 | 1 1 1 1 1 . . . . . . . . . . . . . . . . . . . . . . . . . . 1 . Scrap Searched . | . . . . . . . . . . . . . . . . . . . . . . . . . . . . . . . . . Spaces Dug 193 | . . . . . . 18 1 . . . . . 5 41 . 15 11 50 5 14 8 . . 1 4 2 7 . . 10 1 . Terrain Destroyed 1124 | . 5 . . . 4 69 25 2 1 . 2 . 76 88 . 54 65 153 151 160 40 45 28 81 9 10 29 4 . 17 4 2 Melee . | . . . . . . . . . . . . . . . . . . . . . . . . . . . . . . . . . Projectile 271 | . 5 . . . 4 . 25 2 1 . 2 . 19 11 . 9 38 24 25 9 30 1 . 2 9 10 18 4 . 17 4 2 AOE 853 | . . . . . . 69 . . . . . . 57 77 . 45 27 129 126 151 10 44 28 79 . . 11 . . . . . Terrain Rammed 4 | . . . . . . . . . . . . . . . . . . . . . . . . . . . . . . . . 4 Walls Destroyed . | . . . . . . . . . . . . . . . . . . . . . . . . . . . . . . . . . Machines Disabled . | . . . . . . . . . . . . . . . . . . . . . . . . . . . . . . . . . Actions | -11 -10 -10 -10 -9 -8 -8 -8 -8 -7 -7 -7 -7 -6 -6 -6 -6 -5 -5 -4 -4 -4 -4 -4 -4 -3 -3 -2 -2 -2 -2 -1 -1 --------- Run | Yrd Mat Min Exi Min Mat Gar Mat Gar Fac Gar Fac Gar Fac Gar Fac Gar Fac Gar Fac Gar Fac Gar Fac Gar Res Gar Res Gar Res Gar Acc Com Total 24681 | 53 667 197 238 94 692 1159 948 982 537 624 383 661 1309 845 227 728 1359 1026 1295 1443 1215 1250 164 975 170 1081 892 1062 130 1209 539 527 Wait 2928 | . 33 . . 6 67 55 162 117 60 68 23 80 147 55 29 44 192 132 195 190 168 165 26 158 33 205 47 90 36 209 80 56 Move 18839 | 38 561 197 233 75 502 927 680 723 443 477 330 492 1031 666 186 568 1008 729 984 1078 961 913 124 665 103 781 732 837 93 900 408 394 Hop . | . . . . . . . . . . . . . . . . . . . . . . . . . . . . . . . . . Pick Up 228 | 8 13 . 1 1 27 14 2 9 . 5 . 5 6 14 1 11 8 13 7 20 2 14 1 12 . 6 2 17 . 8 . 1 Fast Attach 162 | 4 1 . . . 7 8 11 7 3 3 2 3 5 1 . 3 8 12 16 17 6 11 3 9 1 2 1 11 . 4 . 3 Attach 139 | 2 1 . . 1 4 8 2 7 1 4 . 3 7 7 . 6 3 7 11 13 1 12 1 5 2 4 5 4 . 3 3 12 Detach 41 | . . . . 1 1 4 . 2 . . . 1 . 5 . 1 1 2 6 3 1 3 1 1 . 2 . 3 . . . 3 Swap 169 | . 9 . 1 1 16 9 6 5 6 1 3 3 9 14 1 5 6 7 5 5 6 5 . 10 2 11 2 12 . 5 1 3 Drop 271 | 1 11 . 3 . 27 19 13 8 3 6 3 7 10 9 . 11 6 22 10 29 10 4 2 15 . 8 1 14 . 8 3 8 Fire 1607 | . 37 . . 9 41 98 70 97 21 56 20 55 92 56 10 61 123 90 61 71 59 44 6 45 29 52 85 73 1 64 42 39 Melee . | . . . . . . . . . . . . . . . . . . . . . . . . . . . . . . . . . Ram 8 | . . . . . . . . . . . . . . . . . . 2 . . . . . . . . 1 . . . . 5 Kick 1 | . 1 . . . . . . . . . . . . . . . . . . . . . . . . . . . . . . . Crush 7 | . . . . . . 2 . 1 . . . 1 . . . . . . . . . . . . . . . . . . 2 1 Escape Stasis 258 | . . . . . . 15 . 6 . 4 2 10 . 18 . 18 . 10 . 16 . 72 . 55 . 8 16 . . 8 . . Rewire 23 | . . . . . . . 2 . . . . 1 2 . . . 4 . . 1 1 7 . . . 2 . 1 . . . 2 Trap . | . . . . . . . . . . . . . . . . . . . . . . . . . . . . . . . . . Miscellaneous . | . . . . . . . . . . . . . . . . . . . . . . . . . . . . . . . . . Route ------- -11/Scrapyard -10/Materials (discovered 4 exits: [*Mat x2] / [*Min] / [*Sub]) -10/Mines (discovered 2 exits: [*Mat] / *Exi) -10/Exiles -9/Mines -8/Materials (discovered 3 exits: *Fac x2 / Gar) -8/Garrison (discovered 4 exits: *Mat x4) -8/Materials (discovered 2 exits: *Fac / Gar) -8/Garrison (discovered 3 exits: *Fac x3) -7/Factory (discovered 2 exits: [*Sto] / Gar) -7/Garrison (discovered 3 exits: *Fac x3) -7/Factory (discovered 2 exits: [*Sto] / Gar) -7/Garrison -6/Factory (discovered 3 exits: *Fac / [*Low] / Gar) -6/Garrison (discovered 3 exits: *Fac x3) -6/Factory -6/Garrison (discovered 3 exits: *Fac x3) -5/Factory (discovered 2 exits: [*Upp] / Gar) -5/Garrison -4/Factory (discovered 3 exits: *Res / [*Upp] / Gar) -4/Garrison (discovered 3 exits: *Fac x3) -4/Factory (discovered 2 exits: [*Upp] / Gar) -4/Garrison (discovered 4 exits: *Res x3 / *Fac) -4/Factory -4/Garrison (discovered 3 exits: *Res x3) -3/Research -3/Garrison (discovered 3 exits: *Res x3) -2/Research (discovered 3 exits: *Acc / [*Tes] / Gar) -2/Garrison (discovered 3 exits: *Res x3) -2/Research -2/Garrison (discovered 2 exits: *Acc x2) -1/Access -1/Command (discovered 1 exit: [*Sur]) History --------- Turn | Location | Event 19 | -11/Scrapyard | Discovered new exit (range 16) 54 | -11/Scrapyard | Entered Materials 268 | -10/Materials | Discovered new exit (range 7) 318 | -10/Materials | Build established: Mutant 545 | -10/Materials | Discovered new exit (range 8) 674 | -10/Materials | Discovered new exit (range 12) 823 | -10/Materials | Discovered new exit (range 12) 833 | -10/Materials | Entered Mines 838 | -10/Mines | Learned Materials terminal intel 848 | -10/Mines | Learned Materials emergency access door positions 905 | -10/Mines | Found a Scrap Suit stashed away for nefarious purposes 936 | -10/Mines | Discovered new exit (range 11) 1006 | -10/Mines | Deemed a non-threat by the Exiles lab entrance 1007 | -10/Mines | Discovered new exit (range 5) 1011 | -10/Mines | Entered Exiles 1033 | -10/Exiles | Met 8R-AWN 1048 | -10/Exiles | Met EX-HEX 1074 | -10/Exiles | Met EX-BIN 1093 | -10/Exiles | Aligned with FarCom system 1093 | -10/Exiles | Given EX-Vault access code 1116 | -10/Exiles | Opened EX-Vault 1122 | -10/Exiles | Found Firepult 1140 | -10/Exiles | Warned to stay clear of 0b10 Research branches 1167 | -10/Exiles | Met EX-DEC 1173 | -10/Exiles | Learned location of Zion (-6) 1218 | -10/Exiles | Discovered new exit (range 12) 1228 | -10/Exiles | Left Exiles lab with Firepult 1228 | -10/Exiles | Entered Mines 1285 | -9/Mines | Found the Drone Emporium 1291 | -9/Mines | Found Prototype Device 1291 | -9/Mines | Identified Splice Drone Bay 1349 | -9/Mines | Discovered new exit (range 5) 1359 | -9/Mines | Entered Materials 1359 | -8/Materials | Accompanied by 2 allies 1359 | -8/Materials | Evolved 4 slots: Propulsion x1, Utility x3 1361 | -8/Materials | Loaded intel: 12 terminal locations 1364 | -8/Materials | Led the pair of lost Derelicts to an unsafe place 1773 | -8/Materials | Discovered new exit (range 4) 2044 | -8/Materials | Discovered new exit (range 3) 2129 | -8/Materials | Identified exit to Garrison 2153 | -8/Materials | Garrison activated, responded to threat 2187 | -8/Materials | Entered Garrison 2250 | -8/Garrison | Installed Relay Interface Framework 2345 | -8/Garrison | Triggered checkpoint 2434 | -8/Garrison | Discovered new exit (range 5) 2481 | -8/Garrison | Triggered checkpoint 2504 | -8/Garrison | Garrison Relay disabled 2608 | -8/Garrison | Triggered checkpoint 2639 | -8/Garrison | Triggered checkpoint 2693 | -8/Garrison | Discovered new exit (range 10) 2759 | -8/Garrison | Triggered checkpoint 2815 | -8/Garrison | Garrison Relay disabled 2989 | -8/Garrison | Discovered new exit (range 8) 3028 | -8/Garrison | Garrison Relay disabled 3046 | -8/Garrison | Garrison Relay disabled 3052 | -8/Garrison | System corruption reached 10% 3055 | -8/Garrison | Garrison Relay disabled 3122 | -8/Garrison | Lost 3 parts (2u1w) 3427 | -8/Garrison | Destroyed 7 combat bots 3479 | -8/Garrison | Discovered new exit (range 13) 3531 | -8/Garrison | Triggered checkpoint 3688 | -8/Garrison | Garrison Relay disabled 3766 | -8/Garrison | Entered Materials 4204 | -8/Materials | Discovered new exit (range 16) 4488 | -8/Materials | Identified exit to Garrison 4806 | -8/Materials | Build established: Bothacker-Mutant 4911 | -8/Materials | Entered Garrison 4911 | -8/Garrison | Accompanied by 2 allies 4965 | -8/Garrison | Triggered checkpoint 5098 | -8/Garrison | Garrison Relay disabled 5251 | -8/Garrison | Triggered checkpoint 5258 | -8/Garrison | Triggered checkpoint 5363 | -8/Garrison | Triggered checkpoint 5433 | -8/Garrison | Triggered checkpoint 5554 | -8/Garrison | Discovered new exit (range 16) 5821 | -8/Garrison | Triggered checkpoint 5891 | -8/Garrison | Garrison Relay disabled 6047 | -8/Garrison | Triggered checkpoint 6068 | -8/Garrison | Discovered new exit (range 80) 6068 | -8/Garrison | Discovered new exit (range 40) 6068 | -8/Garrison | Discovered new exit (range 25) 6075 | -8/Garrison | Garrison Relay disabled 6301 | -8/Garrison | Expanded RIF knowledge: Watcher Feeds 6362 | -8/Garrison | Entered Factory 6362 | -7/Factory | Accompanied by 3 allies 6362 | -7/Factory | Evolved 2 slots: Utility x2 6747 | -7/Factory | Discovered new exit (range 32) 7018 | -7/Factory | Identified exit to Garrison 7022 | -7/Factory | Entered Garrison 7022 | -7/Garrison | Accompanied by 4 allies 7120 | -7/Garrison | Triggered checkpoint 7150 | -7/Garrison | Garrison Relay disabled 7152 | -7/Garrison | Garrison Relay disabled 7292 | -7/Garrison | Triggered checkpoint 7304 | -7/Garrison | Triggered checkpoint 7358 | -7/Garrison | Lost 4 allies 7426 | -7/Garrison | Triggered checkpoint 7444 | -7/Garrison | Triggered checkpoint 7569 | -7/Garrison | Discovered new exit (range 41) 7569 | -7/Garrison | Discovered new exit (range 48) 7569 | -7/Garrison | Discovered new exit (range 37) 7704 | -7/Garrison | Found embedded Infiltrators 7838 | -7/Garrison | Garrison Relay disabled 7844 | -7/Garrison | Triggered checkpoint 7876 | -7/Garrison | Expanded RIF knowledge: Hotswap 7942 | -7/Garrison | Entered Factory 7942 | -7/Factory | Accompanied by 7 allies 8179 | -7/Factory | Discovered new exit (range 16) 8427 | -7/Factory | Identified exit to Garrison 8427 | -7/Factory | Entered Garrison 8427 | -7/Garrison | Accompanied by 8 allies 8445 | -7/Garrison | Spotted B-75 Beast 8461 | -7/Garrison | Allies destroyed B-75 Beast 8578 | -7/Garrison | Expanded RIF knowledge: Autoassimilate 8618 | -7/Garrison | Garrison Relay disabled 8863 | -7/Garrison | Triggered checkpoint 8864 | -7/Garrison | Triggered checkpoint 8875 | -7/Garrison | Build established: Botlord-Mutant 8965 | -7/Garrison | Triggered checkpoint 8979 | -7/Garrison | Triggered checkpoint 9084 | -7/Garrison | Expanded RIF knowledge: Threat Obfuscation 9163 | -7/Garrison | Triggered checkpoint 9188 | -7/Garrison | Garrison Relay disabled 9243 | -7/Garrison | Discovered new exit (range 15) 9310 | -7/Garrison | Entered Factory 9310 | -6/Factory | Accompanied by 14 allies 9310 | -6/Factory | Evolved 2 slots: Utility x1, Weapon x1 9521 | -6/Factory | Lost 3 allies 9607 | -6/Factory | Build established: Botlord-Tank 9634 | -6/Factory | Lost 3 allies 9820 | -6/Factory | Lost 7 allies 10010 | -6/Factory | First assault squad dispatched 10318 | -6/Factory | Assimilated Heavy ARC 5a with formatsys_deep 10592 | -6/Factory | Discovered new exit (range 10) 10696 | -6/Factory | Discovered new exit (range 11) 11026 | -6/Factory | Identified exit to Garrison 11057 | -6/Factory | Build established: Commander-Tank 11100 | -6/Factory | Garrison activated, responded to threat 11152 | -6/Factory | Lost 8 allies 11153 | -6/Factory | Entered Garrison 11153 | -6/Garrison | Accompanied by 2 allies 11215 | -6/Garrison | Triggered checkpoint 11256 | -6/Garrison | Garrison Relay disabled 11323 | -6/Garrison | Triggered checkpoint 11327 | -6/Garrison | Spotted B-75 Beast 11357 | -6/Garrison | Destroyed B-75 Beast 11385 | -6/Garrison | Triggered checkpoint 11393 | -6/Garrison | Triggered checkpoint 11492 | -6/Garrison | Expanded RIF knowledge: Structural Interface 11531 | -6/Garrison | Discovered new exit (range 14) 11637 | -6/Garrison | Triggered checkpoint 11696 | -6/Garrison | Garrison Relay disabled 11727 | -6/Garrison | Triggered checkpoint 11803 | -6/Garrison | Build established: Botlord-Tank 11929 | -6/Garrison | Triggered checkpoint 11941 | -6/Garrison | Garrison Relay disabled 12051 | -6/Garrison | Triggered checkpoint 12060 | -6/Garrison | Discovered new exit (range 14) 12099 | -6/Garrison | Discovered new exit (range 61) 12099 | -6/Garrison | Discovered new exit (range 12) 12099 | -6/Garrison | Discovered new exit (range 35) 12199 | -6/Garrison | Garrison Relay disabled 12213 | -6/Garrison | Triggered checkpoint 12250 | -6/Garrison | Rescued a captive Derelict 12342 | -6/Garrison | Found Relay Coupler [Proto] 12390 | -6/Garrison | Entered Factory 12390 | -6/Factory | Accompanied by 7 allies 12538 | -6/Factory | Garrison activated, responded to threat 12568 | -6/Factory | Repaired Lyr. Heavy Armor Plating? 12703 | -6/Factory | Identified exit to Garrison 12710 | -6/Factory | Entered Garrison 12710 | -6/Garrison | Accompanied by 7 allies 12832 | -6/Garrison | Triggered checkpoint 12848 | -6/Garrison | Garrison Relay disabled 13010 | -6/Garrison | Triggered checkpoint 13018 | -6/Garrison | Triggered checkpoint 13029 | -6/Garrison | P-60 Hacker assimilated allied Soldier 5n 13048 | -6/Garrison | Triggered checkpoint 13063 | -6/Garrison | Destroyed 9 combat bots 13067 | -6/Garrison | Lost 4 allies 13152 | -6/Garrison | Discovered new exit (range 5) 13204 | -6/Garrison | Triggered checkpoint 13237 | -6/Garrison | Garrison Relay disabled 13344 | -6/Garrison | Garrison Relay disabled 13411 | -6/Garrison | Discovered new exit (range 48) 13411 | -6/Garrison | Discovered new exit (range 12) 13411 | -6/Garrison | Discovered new exit (range 61) 13474 | -6/Garrison | Spotted Executioner 13492 | -6/Garrison | Destroyed Executioner 13507 | -6/Garrison | Rewired Executioner 13543 | -6/Garrison | Expanded RIF knowledge: Zone Cloak 13564 | -6/Garrison | Triggered checkpoint 13606 | -6/Garrison | Garrison Relay disabled 13666 | -6/Garrison | Entered Factory 13666 | -5/Factory | Accompanied by 4 allies 13666 | -5/Factory | Evolved 2 slots: Utility x2 13845 | -5/Factory | Discovered new exit (range 10) 14402 | -5/Factory | Cargo convoy interrupted 14456 | -5/Factory | P-70 Sage assimilated allied Executioner 14459 | -5/Factory | Spotted Executioner 14470 | -5/Factory | P-70 Sage assimilated allied Angel 5b 14489 | -5/Factory | Destroyed Executioner 14508 | -5/Factory | Lost 5 allies 14566 | -5/Factory | First assault squad dispatched 14756 | -5/Factory | Assembled infested ambush trap array 15034 | -5/Factory | Repaired Lyr. Heavy Armor Plating 15574 | -5/Factory | Identified exit to Garrison 15574 | -5/Factory | Entered Garrison 15656 | -5/Garrison | Garrison Relay disabled 15932 | -5/Garrison | Spotted B-75 Beast 15953 | -5/Garrison | Destroyed B-75 Beast 16120 | -5/Garrison | Assembled breached garrison interior 16283 | -5/Garrison | Lost 5 allies 16587 | -5/Garrison | Build established: Botlord-Skirmisher 16670 | -5/Garrison | Destroyed 7 combat bots 16758 | -5/Garrison | Expanded RIF knowledge: Autooverride 16778 | -5/Garrison | Garrison Relay disabled 16857 | -5/Garrison | Discovered new exit (range 13) 17014 | -5/Garrison | Destroyed 14 combat bots 17070 | -5/Garrison | System corruption reached 10% 17083 | -5/Garrison | Entered Factory 17083 | -4/Factory | Evolved 2 slots: Utility x2 17105 | -4/Factory | Lost 6 parts (1n4u1w) 17224 | -4/Factory | Found Unknown Device 17224 | -4/Factory | Identified Quantum Capacitor 17358 | -4/Factory | Build established: Botlord-Mutant 17558 | -4/Factory | Discovered new exit (range 12) 17808 | -4/Factory | Discovered new exit (range 8) 18039 | -4/Factory | Build established: Botlord-Tank 18720 | -4/Factory | Found Prototype Device 18720 | -4/Factory | Identified Exp. ECM Suite 18859 | -4/Factory | Repaired Imp. Remote Datajack+? 18961 | -4/Factory | Identified exit to Garrison 18961 | -4/Factory | Entered Garrison 19261 | -4/Garrison | Triggered checkpoint 19305 | -4/Garrison | Garrison Relay disabled 19558 | -4/Garrison | Spotted B-86 Titan 19590 | -4/Garrison | Triggered checkpoint 19600 | -4/Garrison | Destroyed B-86 Titan 19623 | -4/Garrison | Destroyed 12 combat bots 19659 | -4/Garrison | Triggered checkpoint 19807 | -4/Garrison | Triggered checkpoint 19828 | -4/Garrison | Triggered checkpoint 20083 | -4/Garrison | Lost 3 allies 20139 | -4/Garrison | Triggered checkpoint 20144 | -4/Garrison | Garrison Relay disabled 20211 | -4/Garrison | Discovered new exit (range 14) 20218 | -4/Garrison | Found embedded Infiltrators 20354 | -4/Garrison | Build established: Botlord-Mutant 20508 | -4/Garrison | Garrison Relay disabled 20521 | -4/Garrison | Triggered checkpoint 20557 | -4/Garrison | Discovered new exit (range 2) 20577 | -4/Garrison | Expanded RIF knowledge: Signal Jamming 20723 | -4/Garrison | Build established: Botlord-Tank 20760 | -4/Garrison | Discovered new exit (range 10) 20761 | -4/Garrison | Triggered checkpoint 20785 | -4/Garrison | Garrison Relay disabled 20946 | -4/Garrison | Entered Factory 20946 | -4/Factory | Accompanied by 7 allies 21085 | -4/Factory | Spotted B-86 Titan 21115 | -4/Factory | Allies destroyed B-86 Titan 21142 | -4/Factory | Lost 3 allies 21196 | -4/Factory | First assault squad dispatched 21386 | -4/Factory | Lost 4 allies 21640 | -4/Factory | Lost 3 allies 21822 | -4/Factory | Lost 6 allies 21940 | -4/Factory | Discovered new exit (range 4) 22498 | -4/Factory | System corruption reached 10% 22637 | -4/Factory | Identified exit to Garrison 22637 | -4/Factory | Entered Garrison 22650 | -4/Garrison | Lost 6 allies 22654 | -4/Garrison | Lost 6 parts (4u2w) 22693 | -4/Garrison | Garrison Relay disabled 22747 | -4/Garrison | Triggered checkpoint 22763 | -4/Garrison | Garrison Relay disabled 22930 | -4/Garrison | Build established: Botlord-Mutant 22954 | -4/Garrison | Triggered checkpoint 22961 | -4/Garrison | Triggered checkpoint 23085 | -4/Garrison | Triggered checkpoint 23177 | -4/Garrison | Discovered new exit (range 13) 23236 | -4/Garrison | Lost 3 allies 23551 | -4/Garrison | Garrison Relay disabled 23679 | -4/Garrison | Discovered new exit (range 11) 23809 | -4/Garrison | Triggered checkpoint 23831 | -4/Garrison | Garrison Relay disabled 23847 | -4/Garrison | Expanded RIF knowledge: Robot Detection 24092 | -4/Garrison | Discovered new exit (range 12) 24097 | -4/Garrison | Triggered checkpoint 24099 | -4/Garrison | Assimilated Heavy ARC 7a with formatsys_deep 24128 | -4/Garrison | Garrison Relay disabled 24195 | -4/Garrison | Build established: Botlord-Tank 24211 | -4/Garrison | Spotted B-75 Beast 24214 | -4/Garrison | Rewired B-90 Cyclops 24228 | -4/Garrison | Rewired B-75 Beast 24256 | -4/Garrison | Allies destroyed B-75 Beast 24289 | -4/Garrison | Triggered checkpoint 24319 | -4/Garrison | Discovered new exit (range 3) 24390 | -4/Garrison | Entered Factory 24390 | -4/Factory | Accompanied by 19 allies 24583 | -4/Factory | Lost 3 allies 24615 | -4/Factory | Identified exit to Garrison 24639 | -4/Factory | Entered Garrison 24639 | -4/Garrison | Accompanied by 18 allies 24704 | -4/Garrison | Garrison Relay disabled 24731 | -4/Garrison | Triggered checkpoint 24778 | -4/Garrison | Expanded RIF knowledge: Alert ID Control 24858 | -4/Garrison | Triggered checkpoint 24878 | -4/Garrison | Triggered checkpoint 24881 | -4/Garrison | Spotted B-86 Titan 24889 | -4/Garrison | Triggered checkpoint 24894 | -4/Garrison | Triggered checkpoint 24915 | -4/Garrison | Allies destroyed B-86 Titan 24924 | -4/Garrison | Destroyed 7 combat bots 25000 | -4/Garrison | Lost 13 allies 25019 | -4/Garrison | Discovered new exit (range 15) 25201 | -4/Garrison | Triggered checkpoint 25223 | -4/Garrison | Build established: Botlord-Mutant 25258 | -4/Garrison | Garrison Relay disabled 25405 | -4/Garrison | Lost 3 allies 25467 | -4/Garrison | Garrison Relay disabled 25479 | -4/Garrison | Triggered checkpoint 25534 | -4/Garrison | Build established: Botlord-Tank 25559 | -4/Garrison | Discovered new exit (range 8) 25699 | -4/Garrison | Triggered checkpoint 25743 | -4/Garrison | Found embedded Infiltrators 25755 | -4/Garrison | Garrison Relay disabled 25807 | -4/Garrison | Discovered new exit (range 10) 25845 | -4/Garrison | Rewired B-75 Beast 26044 | -4/Garrison | Entered Research 26044 | -3/Research | Accompanied by 15 allies 26044 | -3/Research | Evolved 2 slots: Power x1, Utility x1 26294 | -3/Research | First assault squad dispatched 26316 | -3/Research | Identified exit to Garrison 26330 | -3/Research | Entered Garrison 26330 | -3/Garrison | Accompanied by 11 allies 26357 | -3/Garrison | Lost 4 allies 26388 | -3/Garrison | Triggered checkpoint 26495 | -3/Garrison | Expanded RIF knowledge: Autooverride 26592 | -3/Garrison | P-80 Master assimilated allied Sentinel 7h 26778 | -3/Garrison | Triggered checkpoint 26782 | -3/Garrison | Spotted B-86 Titan 26783 | -3/Garrison | Autoassimilated Titan 8a with RIF 26784 | -3/Garrison | Triggered checkpoint 26784 | -3/Garrison | Triggered checkpoint 26846 | -3/Garrison | Triggered checkpoint 26902 | -3/Garrison | Triggered checkpoint 26923 | -3/Garrison | Discovered new exit (range 12) 26997 | -3/Garrison | Garrison Relay disabled 27162 | -3/Garrison | Triggered checkpoint 27269 | -3/Garrison | Garrison Relay disabled 27391 | -3/Garrison | Discovered new exit (range 14) 27571 | -3/Garrison | Garrison Relay disabled 27582 | -3/Garrison | Triggered checkpoint 27803 | -3/Garrison | Discovered new exit (range 15) 27970 | -3/Garrison | Entered Research 27970 | -2/Research | Accompanied by 20 allies 27970 | -2/Research | Evolved 2 slots: Utility x2 28220 | -2/Research | First assault squad dispatched 28289 | -2/Research | Discovered new exit (range 15) 28326 | -2/Research | Lost 6 allies 28390 | -2/Research | Spotted B-90 Cyclops 28392 | -2/Research | Assimilated Cyclops 9a with formatsys_high 28402 | -2/Research | Spotted B-90 Cyclops 28408 | -2/Research | Assimilated Cyclops 9b with formatsys_high 28737 | -2/Research | Spotted B-90 Cyclops 28762 | -2/Research | Allies destroyed B-90 Cyclops 28797 | -2/Research | Lost 3 allies 29035 | -2/Research | Discovered new exit (range 4) 29145 | -2/Research | Cargo convoy interrupted 29189 | -2/Research | Lost 6 allies 29521 | -2/Research | Identified exit to Garrison 29526 | -2/Research | Entered Garrison 29526 | -2/Garrison | Accompanied by 7 allies 29766 | -2/Garrison | Triggered checkpoint 29783 | -2/Garrison | Garrison Relay disabled 29820 | -2/Garrison | Expanded RIF knowledge: Coupler Efficiency 29853 | -2/Garrison | Garrison Relay disabled 30046 | -2/Garrison | Triggered checkpoint 30046 | -2/Garrison | Spotted B-90 Cyclops 30046 | -2/Garrison | Assimilated Cyclops 9c with formatsys_high 30047 | -2/Garrison | Triggered checkpoint 30050 | -2/Garrison | Triggered checkpoint 30086 | -2/Garrison | Lost 4 allies 30089 | -2/Garrison | Assimilated ARC 9a with formatsys_deep 30134 | -2/Garrison | Triggered checkpoint 30180 | -2/Garrison | Triggered checkpoint 30181 | -2/Garrison | Garrison Relay disabled 30296 | -2/Garrison | Discovered new exit (range 8) 30333 | -2/Garrison | QS Assembler disabled 30586 | -2/Garrison | Garrison Relay disabled 30610 | -2/Garrison | Triggered checkpoint 30642 | -2/Garrison | Expanded RIF knowledge: Threat Obfuscation 30676 | -2/Garrison | Discovered new exit (range 13) 30898 | -2/Garrison | Triggered checkpoint 31020 | -2/Garrison | Garrison Relay disabled 31054 | -2/Garrison | Discovered new exit (range 9) 31081 | -2/Garrison | Spotted B-75 Beast 31092 | -2/Garrison | Rewired B-75 Beast 31093 | -2/Garrison | Rewired B-90 Cyclops 31098 | -2/Garrison | Allies destroyed B-75 Beast 31315 | -2/Garrison | Entered Research 31315 | -2/Research | Accompanied by 20 allies 31462 | -2/Research | Identified exit to Garrison 31520 | -2/Research | Entered Garrison 31520 | -2/Garrison | Accompanied by 21 allies 31592 | -2/Garrison | Triggered checkpoint 31610 | -2/Garrison | Garrison Relay disabled 31675 | -2/Garrison | Spotted B-90 Cyclops 31686 | -2/Garrison | Triggered checkpoint 31694 | -2/Garrison | Assimilated Cyclops 9e with formatsys_high 31782 | -2/Garrison | Triggered checkpoint 31821 | -2/Garrison | Discovered new exit (range 15) 31928 | -2/Garrison | Triggered checkpoint 31938 | -2/Garrison | Garrison Relay disabled 32269 | -2/Garrison | Rescued a captive Derelict 32381 | -2/Garrison | Spotted B-90 Cyclops 32402 | -2/Garrison | Allies destroyed B-90 Cyclops 32429 | -2/Garrison | Lost 3 allies 32602 | -2/Garrison | Expanded RIF knowledge: Crosswire 32614 | -2/Garrison | Triggered checkpoint 32804 | -2/Garrison | Triggered checkpoint 32842 | -2/Garrison | Triggered checkpoint 32865 | -2/Garrison | Garrison Relay disabled 32976 | -2/Garrison | Lost 7 allies 33243 | -2/Garrison | Build established: Botlord-Mutant 33285 | -2/Garrison | Spotted B-90 Cyclops 33290 | -2/Garrison | Discovered new exit (range 12) 33310 | -2/Garrison | Rewired B-86 Titan 33312 | -2/Garrison | Rewired B-90 Cyclops 33315 | -2/Garrison | Destroyed B-90 Cyclops 33600 | -2/Garrison | Build established: Botlord-Tank 33755 | -2/Garrison | Entered Access 33755 | -1/Access | Accompanied by 19 allies 33755 | -1/Access | Evolved 2 slots: Propulsion x1, Utility x1 34005 | -1/Access | First assault squad dispatched 34049 | -1/Access | Allies destroyed Titan 9a 34203 | -1/Access | P-80 Master assimilated allied Cyclops 9f 34203 | -1/Access | Spotted Cyclops 9f 34208 | -1/Access | Allies destroyed Cyclops 9f 34331 | -1/Access | Unchained authorized (GL-D0S) 34440 | -1/Access | Lost 7 allies 34622 | -1/Access | Spotted B-99 Colossus 34622 | -1/Access | Spotted B-99 Colossus 34624 | -1/Access | Assimilated Colossus 10a with formatsys_high 34630 | -1/Access | Allies destroyed B-99 Colossus 34644 | -1/Access | Discovered new exit (range 4) 34890 | -1/Access | Entered Command 34890 | -1/Command | Accompanied by 16 allies 35008 | -1/Command | Found Imp. Powered Armor 35012 | -1/Command | Found Imp. Powered Armor 35013 | -1/Command | Lost 3 allies 35200 | -1/Command | Spotted Striker 35203 | -1/Command | Spotted Alpha 7 35203 | -1/Command | Allies destroyed Striker 35215 | -1/Command | Spotted Alpha 7 35226 | -1/Command | Assimilated Alpha 7 with formatsys_high 35230 | -1/Command | Allies destroyed Alpha 7 35255 | -1/Command | Lost 10 allies 35388 | -1/Command | Lost 3 allies 35586 | -1/Command | Spotted M Guard 35587 | -1/Command | Autoassimilated M Guard with RIF 35588 | -1/Command | Spotted M Guard 35588 | -1/Command | Spotted Combat Programmer 35615 | -1/Command | System corruption reached 10% 35664 | -1/Command | Spotted Combat Programmer 35665 | -1/Command | System corruption reached 30% 35681 | -1/Command | Lost 6 allies 35730 | -1/Command | Met MAIN.C 35731 | -1/Command | 0b10 Conduit disabled 35744 | -1/Command | Core integrity fell below 50% 35763 | -1/Command | Core integrity fell below 20% 35766 | -1/Command | Discovered new exit (range 26) 35778 | -1/Command | Destroyed by MAIN.C with Heavy Quantum Rifle Last Messages --------------- 35756_ Destabilizing: Core damaged (-32). 35757_ System corrupted: Energy discharge (-18). 35757_ Slammed into Heavy Barrier. 35757_ Destabilizing: System corrupted (+1). 35758_ Slammed into Heavy Barrier. 35758_ Relay Coupler [C] destroyed. 35758_ System corrupted by crushing effect (+4). 35758_ Destabilizing: Core damaged (-32). 35758_ Destabilizing: System corrupted (+2). 35759_ Relay Coupler [Specialist] destroyed. 35759_ Combat Programmer shuts down. 35762_ Penetrated by EMDS Slug. 35766_ EXIT=FOUND 35766_ >> Watcher Feeds: Established visual feed link with W-44 Eye. 35766_ Relay Coupler [Heavy] destroyed. 35767_ EMDS Slug penetrates Reinforced Barrier. 35771_ Penetrated by EMDS Slug. 35772_ RNGW#K C67GL6P23Y&W>30G IC3PU35|S9OZ [Achievement: 75k Club] Map ----- +----------------------------------------------------+ | ?????????????????????????????????????????????????? | | ?????????????????????????????????????????????????? | | ?????????????????????????????????????????????????? | | ?????????????????????????????????????????????????? | | ?????????????????????????????????????????????????? | | ?????????????????????????????????????????????????? | | ?????????????????????????????????????????????????? | | ?????????????????????????????????????????????????? | | ?????????#+######+##?????????????##############??? | | ????????? #????????????? """" #??? | | ?????????# #????????????? "" #??? | | ?????????#w #???????"""?? "" #### | | ?????????# #?????""""""""""" / | | ?####????# ##### #?????" " """ / | | ?? #???# #???????#????#"" """""" / | | ??< #???# #????????????#"" """""" #### | | ?? #??##+#####????????# " """"" #??? | | ??# #??# #????????# " " MM #??? | | ??# #??# #????????# " " MMM ""#??? | | ??# #??# ! #????????#""""""" p MMM"""""""#??? | | ??# #??#!! #????????#"" """""""#??? | | ### #??#!! !#????????# p " """"""#??? | | #??# #?? #????# " " " #??? | | ########+## ####?# " " " " #??? | | ??# "?" " " " """" " #??? | | ??#k "?"@ """ " " """" #??? | | ??+ R w "?" " " " " #??? | | ??# ###### #########?# """""""""" " ?????? | | ??# #????# #?????????# " """ " """"""?????? | | ??# #????# R #?????????# """ " " "??????? | | ??# #????# #?????????#################????????? | | ??# #????# #??????????????????????????????????? | | ??# #???? ??????????????????????????????????? | | ??# #???? ?????????????????????????????????? | | ??# #???? T" #????????????????????????????????? | | ??# ???? "" #????????????????????????????????? | | ??# ???? #????????????????????????????????? | | ??# ???? ?#????????????????????????????????? | | ??# ???# ??????????????????????????????????? | | ??# ???## ?? ??????????????????????????????????? | | ??? ???????? ??????????????????????????????????? | | ??? ???????? ??????????????????????????????????? | | ??? ???????? ??????????????????????????????????? | | ??? ????????????????????????????????????????????? | | ?????????????????????????????????????????????????? | | ?????????????????????????????????????????????????? | | ?????????????????????????????????????????????????? | | ?????????????????????????????????????????????????? | | ?????????????????????????????????????????????????? | | ?????????????????????????????????????????????????? | +----------------------------------------------------+ Best States ------------- Heat Dissipation 62 Energy Generation 41 Energy Capacity 925 Matter Stores 300 Matter Capacity 300 Sight Range 18 Terrain Scan Density 10 Power Amplification 30 Armor Coverage 1600 Resistance: KI 30 Resistance: TH 10 Utility Shielding 66 Evasion (%) 55 Recoil Reduction 4 Kinecelleration 40 Offensive Hacking 10 Defensive Hacking 14 Relay Coupler Types 12 Relay Coupler Value 268 Item Schematics ----------------- None Robot Schematics ------------------ None Fabricated ------------ Nothing Repaired ---------- Lyr. Heavy Armor Plating | 18% | -6/Factory Lyr. Heavy Armor Plating | 15% | -5/Factory Imp. Remote Datajack | 28% | -4/Factory Studied --------- Arm. Wheel | -8/Materials | Hacked Imp. Light Cannon | -8/Materials | Hacked Wheel | -8/Materials | Hacked Com. Wheel | -8/Materials | Hacked Arm. Treads | -8/Materials | Hacked Remote Datajack | -7/Factory | Hacked Gauss Cannon | -7/Factory | Hacked Imp. Deuterium Engine | -7/Factory | Hacked Hvy. Assault Cannon | -6/Factory | Hacked Hvy. Mass Driver | -5/Factory | Hacked Arm. Huge Wheel | -5/Factory | Hacked Lgt. Ion Engine | -5/Factory | Hacked Smartbomb Launcher | -4/Factory | Hacked Imp. Remote Datajack | -4/Factory | Hacked Alien Tech Used ----------------- None Achievements -------------- 75k Club Analysis Probe Be The Sidekick Botjacking Deep Understanding Hack The Planet Hackerman I Laugh At Your Crits Join The Dark Side Let Me Out Of Here May I Have Another? Mindtrick Oppo Buddy Plot Armor Powerful Protocols RIFT Wizard Satisfying Sixth Sense Spot Them First That Tickles The Better Part Of Valor Thread The Needle Around The Corner Throw Away The Key Versatile Watcher Gambling You Will Be Upgraded Zeroed Repercussions Challenges ------------ None Game ------ Seed GunArmageddonBeam Manual? 0 Play Time 07:07:59 Cumulative 382.9 hours Start 2025.10.27 @ 05:09:32 End 2025.10.28 @ 07:54:01 Sessions 7 Manual Loads 0 Difficulty Rogue Special Mode None Game No. 182 Rogue 182 Adventurer 0 Explorer 0 Win Type - Total 12 Types 9/0/2/0/0/0/0/0/0/1 Lore% 82 Gallery% 81 Achievement% 49 Wizard Run 0 Options --------- Layout 1 ASCII 0 Keyboard 0 Movement Mouse Keybinds 0 Fullscreen 1 Font 24/Smallcaps Map View 50x35 Zoom Use 0% Tactical HUD 1 Map Filters NONE Filters NONE Steam 1 RUN: cfae53b8-8ccf-4076-9736-c2b5deb01258